Cogmind - Beta 16.1 @@@ ROGUE MODE // 2026.03.26 @ 13:09:13 Player: H3-MLN Result: Destroyed by Y-72 Warden with Railgun Performance ------------- Evolutions (7) 3500 Regions Visited (29) 5800 Robots Destroyed (429) 2145 Value Destroyed (19022) 19022 Prototype IDs (140) 2800 Alien Tech Used (2) 400 Bonus (12935) 12935 TOTAL SCORE: 46602 Bonus ------- High Alert Combat Kills 4403 Follower Combat Kills 8813 Hunted by Unchained 1000 Destroyed Unchained 2000 Entered Garrisons 1000 Used RIF Installer 2500 Entered DSFs 500 Aligned with FarCom 300 Friendly Fire -7581 Cogmind --------- Core Integrity 0/1300 Matter 300/300 Energy 100/100 System Corruption 40% Temperature Cool (0) Movement Core (50) Location -3/Protoforge Parts ------- > --- POWER (2) -------- (None) > --- PROPULSION (6) --- (None) > --- UTILITY (11) ----- Experimental Optical Array Advanced Melee Analysis Suite Advanced Melee Analysis Suite Relay Coupler [C] (1) Relay Coupler [Proto] (1) > --- WEAPON (2) ------- (None) > --- INVENTORY (5) ---- Concept Zero-point Core Experimental Active Sensor Suite Experimental EM Shield Peak State ------------ > --- POWER ------------ Hybrid Graviton Reactor Concept Zero-point Core > --- PROPULSION ------- Improved Antigrav System Improved Antigrav System Improved Antigrav System Antigrav Array Combat Linear Gravjet > --- UTILITY ---------- High-capacity Storage Unit Advanced Weight Redist. System Experimental Optical Array Advanced Melee Analysis Suite Advanced Melee Analysis Suite Concept Projectile Intercept Suite Experimental Reaction Control System Concept Core Shell Centrium Medium Armor Plating Relay Coupler [C] Relay Coupler [Proto] > --- WEAPON ----------- Sigix Broadsword > --- INVENTORY -------- Vortex Chain Reactor Experimental Cooling System Experimental Energy Well Experimental Matter Compressor Experimental Active Sensor Suite Experimental Weapon Cycler Experimental Transmission Jammer Experimental Cloaking Device Centrium Heavy Armor Plating Graphene Brace Experimental EM Shield Experimental Force Field Authchip [Propulsion] Authchip [Propulsion] Crosscalibrator PSU Rigger Subatomic Replicator [Rating: 196] Favorites ----------- Power Reinforced Fission Core Engine Ion Engine Power Core Reinforced Fission Core Reactor Vortex Chain Reactor Propulsion Aerolev Unit Treads Light Treads Leg Carbon-fiber Leg Wheel Armored Wheel Hover Unit Aerolev Unit Flight Unit Impulse Thruster Utility Huge Storage Unit Device Experimental Sensor Array Storage Huge Storage Unit Processor Experimental Targeting Computer Hackware Hacking Suite Protection Advanced Powered Armor Weapon Thunder Hammer Energy Gun Gatling Laser Energy Cannon Enhanced Nova Cannon Ballistic Gun Improved Assault Rifle Ballistic Cannon Bore Cannon Launcher Mini Grenade Launcher Special Weapon Advanced Remote Datajack Impact Weapon Thunder Hammer Slashing Weapon Katana Piercing Weapon Lance Special Melee Weapon Datajack Build | -11 -10 -10 -9 -9 -9 -8 -8 -8 -8 -8 -8 -8 -7 -7 -7 -7 -7 -7 -5 -5 -5 -5 -4 -4 -4 -4 -3 -3 -3 ------- Run | Yrd Mat Min Mat Min Exi Min Mat Gar Mat Gar Mat Gar Fac Gar Fac Sto Rec Scr Fac Was Fac DSF Fac Was Fac Gar Res Qua Frg Slots Evolved 14 | . . . 2 . . . 2 . . . . . 2 . . . . . 4 . . . 2 . . . 2 . . Power 1 | . . . . . . . . . . . . . 1 . . . . . . . . . . . . . . . . Propulsion 4 | . . . 1 . . . 1 . . . . . . . . . . . 2 . . . . . . . . . . Utility 9 | . . . 1 . . . 1 . . . . . 1 . . . . . 2 . . . 2 . . . 2 . . Weapon . | . . . . . . . . . . . . . . . . . . . . . . . . . . . . . . Parts Attached 341 | 7 13 . 19 2 15 1 16 9 9 7 3 14 2 23 18 6 4 4 29 3 1 6 30 . 6 11 27 35 21 Power 33 | 1 2 . 2 . 1 . . 1 . . . 1 . 5 4 . 1 1 2 . . 2 1 . . . 1 5 3 Engine 12 | 1 2 . 2 . . . . 1 . . . . . 3 1 . . . . . . . . . . . . 2 . Core 12 | . . . . . 1 . . . . . . 1 . 2 3 . 1 1 2 . . . . . . . . . 1 Reactor 9 | . . . . . . . . . . . . . . . . . . . . . . 2 1 . . . 1 3 2 Propulsion 101 | 2 3 . 8 . 6 . 11 4 . 1 . 3 2 8 5 4 . . 11 . . . 9 . 2 3 4 12 3 Treads 35 | 1 1 . 5 . 4 . 10 3 . . . 3 2 5 1 . . . . . . . . . . . . . . Leg 5 | . . . . . 2 . . . . . . . . 3 . . . . . . . . . . . . . . . Wheel 15 | 1 2 . 3 . . . . . . 1 . . . . 4 . . . . . . . . . . . . 4 . Hover 42 | . . . . . . . 1 . . . . . . . . 4 . . 11 . . . 7 . 2 3 4 8 2 Flight 4 | . . . . . . . . 1 . . . . . . . . . . . . . . 2 . . . . . 1 Utility 151 | 2 3 . 5 2 2 1 3 1 6 5 3 8 . 5 8 1 1 1 14 2 1 3 18 . 2 7 18 15 14 Device 43 | 1 1 . . . . . . 1 2 . . 1 . 1 2 1 1 1 3 2 1 1 4 . . . 8 6 6 Storage 10 | 1 2 . . . . . . . . . . . . . 1 . . . 2 . . 1 1 . . . 2 . . Processor 19 | . . . 2 . . . 2 . 2 . . . . 1 . . . . 2 . . . 1 . . . . 4 5 Hackware 59 | . . . 1 . . 1 . . 1 4 3 6 . 2 5 . . . 7 . . 1 11 . 2 7 4 4 . Protection 20 | . . . 2 2 2 . 1 . 1 1 . 1 . 1 . . . . . . . . 1 . . . 4 1 3 Artifact . | . . . . . . . . . . . . . . . . . . . . . . . . . . . . . . Weapon 56 | 2 5 . 4 . 6 . 2 3 3 1 . 2 . 5 1 1 2 2 2 1 . 1 2 . 2 1 4 3 1 Energy Gun 12 | 2 2 . . . . . . 1 . . . 1 . 3 1 . . . . . . . 1 . . . . 1 . Energy Cannon 2 | . . . . . . . . . . . . . . . . . . . . . . . . . . . 2 . . Ballistic Gun 14 | . 2 . 2 . 2 . 1 . 1 . . 1 . 1 . 1 . . . . . . 1 . 1 . 1 . . Ballistic Cannon 4 | . . . . . 1 . . . 1 . . . . . . . . 1 . . . 1 . . . . . . . Launcher 4 | . 1 . 1 . 1 . 1 . . . . . . . . . . . . . . . . . . . . . . Special Weapon 10 | . . . . . . . . 1 1 1 . . . 1 . . . 1 1 . . . . . 1 1 1 1 . Impact Weapon 2 | . . . . . . . . 1 . . . . . . . . . . 1 . . . . . . . . . . Slashing Weapon 5 | . . . 1 . 1 . . . . . . . . . . . 1 . . . . . . . . . . 1 1 Piercing Weapon 2 | . . . . . . . . . . . . . . . . . 1 . . 1 . . . . . . . . . Special Melee Weapon 1 | . . . . . 1 . . . . . . . . . . . . . . . . . . . . . . . . Unidentified Prototypes 35 | . 1 . 1 . . . 1 1 1 . . . . . 1 1 . . 5 2 . 2 3 . . . 5 2 9 Corrupted Parts 3 | . . . . . . . . . . . . . . . . . . . 3 . . . . . . . . . . System Corruption 6 | . . . . . . . . . . . . . . . . . . . 6 . . . . . . . . . . Parts Lost 82 | . . . 2 1 6 . 2 2 . 3 . 2 . 10 2 . . 1 4 . . 4 3 . . 2 14 13 11 Power 13 | . . . 1 . 1 . . . . . . . . 2 . . . 1 . . . 2 . . . . 2 3 1 Propulsion 29 | . . . . . 4 . 1 1 . 1 . 1 . 5 1 . . . 1 . . . 1 . . 1 3 4 5 Utility 28 | . . . 1 1 1 . . 1 . 1 . 1 . 1 . . . . 2 . . 2 1 . . 1 8 3 4 Weapon 12 | . . . . . . . 1 . . 1 . . . 2 1 . . . 1 . . . 1 . . . 1 3 1 Highest Loss Streak 11 | . . . 1 1 6 . 1 1 . 2 . 1 . 5 1 . . 1 2 . . 4 1 . . 1 6 7 11 To Critical Strikes 4 | . . . . . 3 . . . . . . . . . . . . . . . . . . . . 1 . . . Average Backups 21 | 3 17 23 24 24 21 22 22 22 21 21 21 20 21 22 22 22 22 23 20 19 19 19 19 19 19 18 18 18 17 Power . | . 1 1 . . . 1 1 1 1 1 . . . . . . . . . . . . . . . . . . . Propulsion 2 | 1 6 7 6 6 3 5 4 3 2 1 1 . . . 1 2 2 2 . 1 1 1 . . . . . 2 . Utility 10 | . 2 6 5 5 4 7 7 9 12 12 13 12 11 16 13 12 14 14 13 11 11 12 10 11 10 10 11 10 12 Weapon 5 | 1 6 8 12 12 12 8 7 7 5 4 4 5 6 4 5 5 5 4 3 4 4 3 5 5 5 5 4 2 . Tool/Special . | . . . . . . . . . . . . . . . . . . . . . . . . . . . . . . Unused Backups 93 | . 8 1 9 . 13 . 1 5 1 3 2 1 . 9 1 2 . 1 5 . 2 6 7 . 1 1 . . 14 Power 16 | . 2 . . . 4 . . 1 . . 1 . . 2 . . . . . . . . 2 . . . . . 4 Propulsion 15 | . 2 . 2 . 3 . 1 . . . 1 . . 1 1 2 . . . . . . 1 . 1 . . . . Utility 37 | . . 1 2 . 1 . . 3 1 3 . . . 3 . . . 1 5 . 2 5 1 . . . . . 9 Weapon 20 | . 4 . 5 . 5 . . . . . . . . 3 . . . . . . . 1 1 . . 1 . . . Tool/Special 5 | . . . . . . . . 1 . . . 1 . . . . . . . . . . 2 . . . . . 1 Average Slot Usage (%) 93 | . 100 100 99 100 90 100 95 99 89 89 89 96 90 97 98 99 95 92 95 94 94 92 87 89 88 90 90 75 88 Engine 2 | . 14 14 10 11 6 . . . . . . . . 5 2 . . . . . . . . . . . . 2 . Core 6 | . . . . . 4 11 8 8 9 9 9 9 7 8 12 15 14 15 11 11 11 1 . . . . . . . Reactor 1 | . . . . . . . . . . . . . . . . . . . . . . 9 5 5 5 5 3 3 7 Treads 13 | . 14 14 13 11 13 11 29 29 27 25 26 32 30 19 17 12 . . . . . . . . . . . . . Wheel 4 | . 14 14 19 22 17 22 5 5 . 1 . . . . 11 12 . . . . . . . . . . . 3 . Hover 10 | . . . . . . . . . . . . . . . . 4 30 30 33 29 29 29 25 26 25 28 25 18 22 Device 7 | . 14 14 1 . . . . . 1 1 . 1 5 2 6 7 13 12 9 11 15 16 15 21 17 17 25 11 11 Storage 7 | . 14 14 11 11 11 11 9 9 9 9 9 9 7 7 7 7 7 7 5 5 5 5 5 5 5 5 4 4 3 Processor 7 | . . . 2 . . . 6 9 15 9 9 9 7 7 7 7 7 7 15 17 12 5 5 5 5 5 3 8 16 Hackware 9 | . . . 9 11 2 . 9 9 2 8 13 6 7 8 13 15 8 7 7 5 5 5 14 15 18 18 14 12 13 Protection 5 | . . . 8 11 13 21 9 8 7 7 4 10 7 10 1 . . 2 1 . . 4 3 . . . . 1 3 Energy Gun 3 | . 14 1 9 . . . . . 7 7 8 9 12 8 11 15 5 . . . . . . . . . . . . Ballistic Gun 3 | . 13 14 11 13 9 11 14 . 1 . . 2 2 4 . . . . 1 . . . 4 5 2 . 2 1 . Ballistic Cannon 1 | . . . . . . . 2 7 8 1 . . . . . . . . . . . . . . . . . . . Launcher 1 | . . 12 . 8 1 11 . 2 . . . . . . . . . . 1 1 . . . . . . . . . Impact Weapon 1 | . . . . . . . . 6 . . . . . . . . . . . 3 5 4 5 5 4 4 3 1 . Slashing Weapon 1 | . . . . . 5 . . . . 6 9 2 . . . . 4 5 . . . . . . . . . 1 3 Peak Build Rating 196 | 9 13 13 25 24 49 35 45 83 106 99 83 87 78 78 59 69 73 77 108 110 110 121 147 146 146 148 166 157 196 Average Rating 79 | 5 11 11 21 23 28 34 40 46 95 83 80 68 71 60 54 58 70 69 97 107 109 114 134 146 140 141 154 123 172 On Entrance 75 | . 9 12 13 23 24 34 35 45 83 96 80 82 64 78 56 55 69 70 68 105 110 110 120 146 146 144 142 87 153 Avg Prop Armor Cover (%) 12 | 16 13 13 10 8 8 7 11 23 16 15 16 15 . 6 16 16 . . 5 5 . . 2 . 4 . . 6 . Naked Turns . | . . . . . . . . . . . . . . . . . . . . . . . . . . . . . . Heaviest Build 159 | 11 91 91 100 98 119 115 116 121 136 130 114 115 118 123 123 119 119 116 117 69 70 158 159 88 102 105 111 83 94 Greatest Support 150 | 16 16 16 26 24 66 24 80 150 150 70 70 110 110 110 80 48 44 44 76 73 73 73 102 111 111 98 105 87 88 Greatest Overweight (x) 11 | . 8 5 6 4 9 4 4 9 1 7 1 1 1 7 11 5 3 3 1 . . 2 2 . 1 1 1 6 3 Average Overweight (x) 1 | . 4 5 4 3 4 4 2 6 . 1 1 . . 1 5 4 2 2 . . . 1 . . . . . . . Largest Inventory Capacity 25 | 8 25 25 25 25 25 25 25 25 25 25 25 25 25 25 25 25 25 25 25 20 20 25 25 20 20 20 20 20 20 Average Capacity 23 | 7 20 25 25 25 24 25 25 25 25 25 25 25 25 25 25 25 25 25 21 20 20 21 21 20 20 20 20 20 19 Most Carried 25 | 6 22 25 25 25 25 25 25 25 25 25 25 25 25 25 25 25 25 25 25 20 20 25 24 20 20 20 20 20 20 Average Carried 22 | 3 17 23 24 24 22 25 24 24 24 24 24 24 24 24 24 24 24 24 21 19 19 20 20 20 19 19 19 18 18 Final Capacity 25 | 8 25 25 25 25 25 25 25 25 25 25 25 25 25 25 25 25 25 25 20 20 20 25 20 20 20 20 20 20 5 Final Carried 25 | 6 22 25 25 25 25 25 25 25 25 25 25 25 25 25 24 25 25 25 20 20 20 25 20 20 20 20 18 17 4 Class Distribution -------------------- 37% | Bothacker-Mutant 32% | Mutant 10% | Scavenger-Mutant 7% | Commander-Mutant 4% | Hacker-Mutant 3% | Scavenger-Gladiator Dominant Class ---------------- Mutant | -10/Materials Mutant | -10/Mines Mutant | -9/Materials Scavenger-Mutant | -9/Mines Mutant | -9/Exiles Mutant | -8/Mines Mutant | -8/Materials Mutant | -8/Garrison Bothacker-Mutant | -8/Materials Bothacker-Mutant | -8/Garrison Bothacker-Mutant | -8/Materials Bothacker-Mutant | -8/Garrison Bothacker-Mutant | -7/Factory Bothacker-Mutant | -7/Garrison Bothacker-Mutant | -7/Factory Bothacker-Mutant | -7/Storage Commander-Mutant | -7/Recycling Bothacker-Mutant | -7/Scraptown Scavenger-Mutant | -5/Factory Mutant | -5/Waste Sprinter | -5/Factory Mutant | -5/DSF Mutant | -4/Factory Mutant | -4/Waste Bothacker-Mutant | -4/Factory Commander-Mutant | -4/Garrison Bothacker-Mutant | -3/Research Scavenger-Mutant | -3/Quarantine Scavenger-Gladiator | -3/Protoforge Resources | -11 -10 -10 -9 -9 -9 -8 -8 -8 -8 -8 -8 -8 -7 -7 -7 -7 -7 -7 -5 -5 -5 -5 -4 -4 -4 -4 -3 -3 -3 ----------- Run | Yrd Mat Min Mat Min Exi Min Mat Gar Mat Gar Mat Gar Fac Gar Fac Sto Rec Scr Fac Was Fac DSF Fac Was Fac Gar Res Qua Frg Matter Collected 14457 | 237 358 114 521 141 522 140 646 719 855 692 221 652 114 688 435 59 81 179 1096 169 25 373 655 . 501 720 2046 696 802 Remotely . | . . . . . . . . . . . . . . . . . . . . . . . . . . . . . . Salvage Created 18308 | 69 595 30 1066 281 570 256 1034 635 1581 795 961 660 231 796 491 39 619 183 1500 69 103 149 898 . 536 . 1632 1446 1083 Parts 1064 | 8 45 9 84 14 68 10 70 35 85 41 51 40 10 37 26 5 20 13 68 2 4 8 33 . 29 . 92 76 81 Haulers Intercepted 16 | . 2 . 2 . . . 3 . 3 . 2 . . . . . . . 2 . 1 . 1 . . . . . . Recyclers Shooed 9 | 1 . . . . . . 1 . 1 . . . . . 1 . 1 . 1 . . . . . 1 . 1 1 . Parts Field Recycled . | . . . . . . . . . . . . . . . . . . . . . . . . . . . . . . Retrieved Matter . | . . . . . . . . . . . . . . . . . . . . . . . . . . . . . . Parts Self-Destructed . | . . . . . . . . . . . . . . . . . . . . . . . . . . . . . . Prevented . | . . . . . . . . . . . . . . . . . . . . . . . . . . . . . . Parts Restored . | . . . . . . . . . . . . . . . . . . . . . . . . . . . . . . Kills | -11 -10 -10 -9 -9 -9 -8 -8 -8 -8 -8 -8 -8 -7 -7 -7 -7 -7 -7 -5 -5 -5 -5 -4 -4 -4 -4 -3 -3 -3 ------- Run | Yrd Mat Min Mat Min Exi Min Mat Gar Mat Gar Mat Gar Fac Gar Fac Sto Rec Scr Fac Was Fac DSF Fac Was Fac Gar Res Qua Frg Combat Hostiles Destroyed 291 | . 15 6 24 10 5 7 24 15 30 21 13 10 4 18 7 1 . 3 15 . . 2 13 . 5 . 16 9 18 Melee 35 | . . . . . 1 . . . 1 . 1 . . . . . . . 2 . . 2 6 . . . 2 4 16 Guns 131 | . 12 . 17 5 . . 14 . 10 13 8 6 3 8 6 1 . . 6 . . . 6 . 5 . 11 . . Cannons 22 | . . . . . . . 2 8 6 1 . . . . . . . . . . . . . . . . 1 4 . AOE 95 | . 3 6 7 5 4 7 8 7 13 7 4 1 1 10 1 . . 3 7 . . . . . . . . . 1 Classes Destroyed 28 | 1 5 . 5 . 3 3 . 1 2 1 . . . . . . . 2 . . . 1 . . . . 1 . 3 Worker 12 | . . . 2 . . . . . 1 . . . . . 3 . . . 2 . . . 1 . . . . 3 . Builder 18 | . . . 1 . . . 1 . 2 . . . . . . . 2 . 1 . . . 1 . . . 2 5 3 Tunneler 7 | 4 . . 1 . . 1 . . . . . . . . 1 . . . . . . . . . . . . . . Hauler 16 | . 2 . 2 . . . 3 . 3 . 2 . . . . . . . 2 . 1 . 1 . . . . . . Recycler 29 | . . . . . . 1 3 . 1 . 3 . . . 1 . 8 . 4 . . . 1 . 1 . 2 4 . Mechanic 5 | . 1 . . . . . . . 1 . 1 . . 1 . . . . . . . . . . . . . 1 . Operator 12 | . 3 . 1 . . . . . 1 . 2 . . . 1 . . . 1 . . . 1 . . . . 2 . Drone 1 | . . . . . . . . . . . . . . . . . . . . . . . . . . . . . 1 Turret 1 | . . . . . 1 . . . . . . . . . . . . . . . . . . . . . . . . Watcher 26 | . . . 5 . . . 1 . 3 . 3 . 1 1 . . . . 1 . . . 2 . 2 . 5 2 . Swarmer 67 | . 6 6 6 4 . . 14 4 . 6 2 . 1 3 1 . . . 5 . . . 9 . . . . . . Cutter 5 | . . . . . . . . . . 2 . . . . . . . . . . . . . . . . 3 . . Grunt 95 | . 9 . 13 5 . 4 6 4 20 5 7 2 2 6 1 . . . 2 . . 1 . . . . 5 1 2 Brawler 4 | . . . . . . 1 . . 1 . 1 . . . . . . . . . . . . . . . 1 . . Duelist 9 | . . . 1 1 . 1 . 1 . . 1 . . 2 1 . . . . . . . . . . . . . 1 Protector 4 | . . . . . . . . . 2 . . . . . . . . . . . . . . . . . 1 . 1 Researcher 1 | . . . . . . . . . . . . . . . . . . . . . . . . . . . . . 1 Sentry 30 | . . . 4 . . . 2 2 3 3 2 1 . 6 1 . . . 2 . . . 1 . . . 1 . 2 Demolisher 1 | . . . . . . . . . . 1 . . . . . . . . . . . . . . . . . . . Hunter 19 | . . . . . . 1 2 1 2 2 . 1 1 2 1 . . . 2 . . . 2 . 1 . 1 . . Programmer 41 | . . . . . . . . 3 . 2 . 7 . 1 2 1 . . 4 . . . 1 . 4 . 3 8 5 Heavy 1 | . . . . . . . . . . . . . . . . . . . . . . 1 . . . . . . . Behemoth 1 | . . . . . . . . . . . . . . . . . . . . . . . . . . . 1 . . Decapitator 4 | . . . . . . . . . . . . . . . . . . . . . . . . . . . . . 4 Immortal 1 | . . . . . . . . . . . . . . . . . . . . . . . . . . . . . 1 Fortress 1 | . . . . . . . . . . . . . . . . . . . . . . . . . . . . . 1 Scrapper 3 | . . . . . . . . . . . . . . . . . . 3 . . . . . . . . . . . Zionite 8 | . . . . . 8 . . . . . . . . . . . . . . . . . . . . . . . . Tinkerer 1 | . . . . . . . . . . . . . . . . . . 1 . . . . . . . . . . . Assembled 4 | . . . . . 4 . . . . . . . . . . . . . . . . . . . . . . . . Martyr 1 | . . . . . . . . . 1 . . . . . . . . . . . . . . . . . . . . Best Kill Streak 16 | 2 3 3 16 4 4 5 6 4 7 4 10 3 2 8 3 1 3 3 7 . 1 2 4 . 2 . 2 3 4 Combat Bots Only 9 | . 3 3 9 4 4 3 5 4 5 4 7 3 2 8 2 1 . 3 5 . . 2 4 . 2 . 2 2 4 Max Kills in Single Turn 5 | 1 2 3 5 3 2 3 3 2 4 3 3 1 1 2 2 1 1 2 2 . 1 1 1 . 1 . 1 1 1 Gunslinging 1 | . . . . . . . . . . 1 . . . . . . . . . . . . . . . . . . . Exploded 4 | . 2 3 4 3 2 2 3 2 3 3 3 1 1 2 1 . . 2 2 . . . . . . . . . 1 Melee 1 | . . . . . 1 . . . 1 . 1 . . . . . . . 1 . . 1 1 . . . 1 1 1 Uniques/NPCs Destroyed 7 | . . . . . 4 . . 1 1 . . . . . . . . . . . . . . . . . 1 . . 8R-AWN (-9/Exiles) EX-DEC (-9/Exiles) EX-HEX (-9/Exiles) EX-BIN (-9/Exiles) AZ-K3N (-8/Garrison) CL-0N3 (-8/Materials) CY-PHR (-3/Research) Combat | -11 -10 -10 -9 -9 -9 -8 -8 -8 -8 -8 -8 -8 -7 -7 -7 -7 -7 -7 -5 -5 -5 -5 -4 -4 -4 -4 -3 -3 -3 -------- Run | Yrd Mat Min Mat Min Exi Min Mat Gar Mat Gar Mat Gar Fac Gar Fac Sto Rec Scr Fac Was Fac DSF Fac Was Fac Gar Res Qua Frg Hostile Shots Fired 1749 | . 47 7 85 36 63 12 105 59 68 93 52 82 16 205 57 . 9 21 85 . . 2 55 . 42 4 203 118 223 Missed 523 | . 16 4 28 12 10 5 20 22 25 20 18 27 8 71 18 . 1 7 28 . . . 17 . 10 2 54 35 65 Deflected 8 | . . . . . . . . . . . . . . . . . . . . . . . . . . . . . 8 Hits 1226 | . 31 3 57 24 53 7 85 37 43 73 34 55 8 134 39 . 8 14 57 . . 2 38 . 32 2 149 83 158 Melee 62 | . . . . . . . . 1 . 9 . . . 7 2 . . . . . . . . . . . 24 . 19 Projectile 1164 | . 31 3 57 24 53 7 85 36 43 64 34 55 8 127 37 . 8 14 57 . . 2 38 . 32 2 125 83 139 AOE 12 | . . . . . . . . . 4 . . . . . . . . . . . . . 1 . . . 6 . 1 Critical Strikes 117 | . 1 . 2 . 28 . 1 1 . 6 5 2 . 3 1 . . 3 6 . . 1 5 . 1 2 26 5 18 Actively Blocked 48 | . . . . . . . . . . 1 . . . 1 . . . . . . . . . . 1 1 26 5 13 Part Disruptions 14 | . . . . . . . . . . 1 . . . . . . . . . . . . . . . . 12 1 . Damage Taken 22611 | . 308 66 665 339 888 157 1096 496 816 1155 534 913 127 1643 484 . 52 289 1124 . . 141 562 . 631 45 3537 2107 4436 Core 2681 | . 69 7 118 30 107 23 111 33 13 76 48 125 14 137 66 . 42 . 140 . . . 105 . 78 15 415 358 551 Absorbed by Shields 614 | . . . . . . . . 10 . 23 . . . . 25 . 3 . 23 . . . 192 . . 45 270 18 5 Redirected to Shielding 246 | . . . . . . . . . . 23 . 28 19 37 . . . . . . . . . . . . . . 139 Ignored by Resistances 127 | . . . . . . . . . . . . . . . . . . . . . . . . . . . . . 127 Regen/Repaired (Parts) 3011 | . . . . . . . 437 . . 377 177 82 . . . 319 . . . . . . 188 . . . . 467 964 Core Remaining (%) 65 | 100 . 69 . . . 30 . . . . . 26 . . . . . 63 . . . 86 . . . 82 . . . Volleys Fired 1242 | 10 56 4 66 15 46 13 75 54 111 82 48 118 14 65 41 2 . 11 53 . . . 48 . 39 54 163 46 8 Largest 2 | 2 2 1 2 2 1 1 2 1 2 2 1 2 2 2 2 2 . 1 1 . . . 1 . 1 1 1 1 1 Hottest 160 | 80 80 30 79 46 48 30 71 48 142 142 94 144 144 160 160 160 . 40 30 . . . 35 . 35 35 120 120 75 Shots Fired 1556 | 20 109 4 121 27 46 13 144 54 142 100 47 135 23 82 63 4 . 11 53 1 . . 48 . 39 53 163 46 8 Gun 1183 | 20 106 . 116 24 38 . 136 6 88 71 43 117 23 68 49 4 . . 43 . . . 48 . 33 8 111 25 6 Cannon 135 | . . . . . 4 . 4 29 40 8 . . . . . . . 5 . . . . . . . . 28 17 . Launcher 102 | . 3 4 5 3 4 13 4 18 13 6 4 3 . 10 1 . . 4 6 1 . . . . . . . . . Special 136 | . . . . . . . . 1 1 15 . 15 . 4 13 . . 2 4 . . . . . 6 45 24 4 2 Kinetic 795 | . 47 . 65 24 42 . 140 35 78 20 12 15 . 44 . . . 5 43 . . . 48 . 33 8 111 25 . Thermal 461 | 20 59 . 51 . . . . . 50 59 31 62 9 22 49 4 . . . . . . . . . . 28 17 . Explosive 102 | . 3 4 5 3 4 13 4 18 13 6 4 3 . 10 1 . . 4 6 1 . . . . . . . . . Electromagnetic 62 | . . . . . . . . . . . . 40 14 2 . . . . . . . . . . . . . . 6 Robot Hit Streak 46 | 7 9 4 13 10 22 3 14 5 12 15 21 40 13 34 24 8 . 6 14 . . . 9 . 15 46 13 6 13 Robot Miss Streak 5 | 2 2 1 3 2 4 1 3 3 4 2 1 1 1 2 5 1 . 1 2 . . . 2 . 3 1 3 3 . Penetration Max 2 | . . . . . 1 . . 1 2 . . 1 . . . . . . 1 . . . 1 . 1 1 2 . . Secondary Targets 11 | . 1 . 1 2 . . 2 . 1 1 . . 1 1 1 . . . . . . . . . . . . . . Max Gunslinging Chain 1 | . 1 . 1 1 . . 1 . 1 1 . . 1 1 1 . . . . . . . . . . . . . . Shots Hit Robots 1307 | 12 62 1 85 19 72 5 103 62 102 70 49 87 19 52 54 3 12 8 52 1 1 9 48 . 34 49 103 67 66 Core Hits 667 | 5 27 5 49 14 30 15 54 31 86 28 33 21 7 52 31 1 5 8 38 1 . 4 18 . 17 3 30 27 27 Critical Kills 58 | . . . . . 2 . 2 4 10 3 3 2 . 1 . . . . 6 . . . 7 . 4 . 11 3 . Critical Parts Destroyed 98 | . . . 1 . 5 . 1 4 14 8 3 4 . 3 . . . . 7 . . . 12 . 4 1 22 9 . Critical Strikes 206 | . 3 . 3 . 9 . 3 16 26 14 10 16 . 4 . . 1 . 17 . . 1 20 . 8 1 36 12 6 Burn 22 | . 3 . 2 . . . . . 2 3 3 9 . . . . . . . . . . . . . . . . . Meltdown 1 | . . . . . . . . . . . . . . . . . . . . . . . . . . . 1 . . Destroy 143 | . . . 1 . 7 . 3 10 24 11 6 6 . 4 . . . . 14 . . . 14 . 7 1 30 5 . Corrupt 1 | . . . . . . . . . . . . 1 . . . . . . . . . . . . . . . . . Smash 19 | . . . . . . . . . . . . . . . . . . . . . . . 6 . 1 . 5 7 . Sever 15 | . . . . . 2 . . 6 . . 1 . . . . . . . . . . . . . . . . . 6 Impale 5 | . . . . . . . . . . . . . . . . . 1 . 3 . . 1 . . . . . . . Melee Attacks 612 | . . . 2 . 62 . . 112 20 31 8 5 . . . . 18 7 42 1 7 12 35 . 22 24 53 52 99 Impact 244 | . . . . . . . . 72 . . . . . . . . . . 3 . 6 4 35 . 22 24 53 25 . Slashing 306 | . . . 2 . 58 . . 40 20 31 8 5 . . . . 16 . . . . . . . . . . 27 99 Piercing 58 | . . . . . . . . . . . . . . . . . 2 7 39 1 1 8 . . . . . . . Sneak Attacks 108 | . . . . . 7 . . 34 . . 5 . . . . . 11 2 9 . 1 1 6 . 2 . 3 13 14 Combat Hostiles 1 | . . . . . . . . . . . . . . . . . . . . . . 1 . . . . . . . Follow-up Attacks 8 | . . . . . 7 . . . . . . . . . . . . . . . . 1 . . . . . . . Damage Inflicted 48319 | 134 1028 358 2178 548 2159 839 1988 3903 3634 2463 2150 2336 522 2252 1190 90 1140 663 2673 52 135 392 1696 . 850 129 2344 4569 5904 Guns 15730 | 134 871 . 1431 275 489 . 1457 91 1173 1547 1007 2121 480 1041 1105 90 . . 740 . . . 281 . 328 129 667 145 128 Cannons 2203 | . . . . . 7 . 67 427 608 125 . . . . . . . 27 . . . . . . . . 209 733 . Explosions 10496 | . 157 358 747 273 194 839 464 1163 1648 700 720 215 42 1211 85 . . 493 985 . . . . . 133 . . 69 . Melee 19775 | . . . . . 1469 . . 2222 140 91 423 . . . . . 1140 143 948 52 135 392 1415 . 389 . 1418 3622 5776 Ramming 115 | . . . . . . . . . 65 . . . . . . . . . . . . . . . . . 50 . . Kinetic 8439 | . 247 . 779 275 496 . 1524 518 1066 260 151 346 . 460 . . . 27 740 . . . 281 . 328 129 667 145 . Thermal 8984 | 134 624 . 652 . . . . . 715 1412 856 1474 284 627 1105 90 . . . . . . . . . . 209 802 . Explosive 10190 | . 157 358 747 273 194 839 464 1163 1648 700 720 215 . 1149 85 . . 493 985 . . . . . . . . . . Electromagnetic 816 | . . . . . . . . . . . . 301 238 16 . . . . . . . . . . 133 . . . 128 Impact 5165 | . . . . . . . . 110 . . . . . . . . . . . . . 264 1415 . 389 . 1418 1569 . Slashing 13020 | . . . . . 1469 . . 2112 140 91 423 . . . . . 956 . . . . . . . . . . 2053 5776 Piercing 1590 | . . . . . . . . . . . . . . . . . 184 143 948 52 135 128 . . . . . . . Highest Corruption 40 | . . . . . . . . . . 3 3 5 . 1 2 . . . 7 7 7 7 1 1 3 4 22 34 40 Average Corruption 7 | . . . . . . . . . . 2 3 4 . 1 1 . . . 3 7 7 7 1 1 1 3 15 27 32 Corruption Purged 5 | . . . . . . . . . . . . 3 . . 2 . . . . . . . . . . . . . . Corruption Blocked . | . . . . . . . . . . . . . . . . . . . . . . . . . . . . . . Effects 309 | . . . . . . . . . . 31 26 27 . 5 20 . . . 17 5 6 7 . . 9 14 5 71 66 Message Errors 74 | . . . . . . . . . . 6 6 . . 3 7 . . . 4 2 2 2 . . 4 4 3 13 18 Matter Fused 73 | . . . . . . . . . . 10 7 9 . 1 4 . . . 5 1 2 1 . . . 1 . 17 15 Heat Flow Errors 36 | . . . . . . . . . . 2 2 4 . 1 3 . . . 3 . 2 3 . . 2 2 . 7 5 Energy Discharges 35 | . . . . . . . . . . 2 4 5 . . 2 . . . 3 1 . 1 . . 1 3 2 6 5 Parts Rejected 3 | . . . . . . . . . . 1 1 . . . . . . . . . . . . . . . . . 1 Parts Fused 4 | . . . . . . . . . . 1 . 2 . . . . . . . . . . . . . . . . 1 Data Loss (minor) 25 | . . . . . . . . . . 5 2 1 . . 3 . . . 1 . . . . . . . . 8 5 Data Loss (major) 16 | . . . . . . . . . . 1 . 2 . . . . . . 1 . . . . . 1 1 . 6 4 Misfires 8 | . . . . . . . . . . 1 1 2 . . 1 . . . . 1 . . . . . . . 2 . Alerts 8 | . . . . . . . . . . 2 1 1 . . . . . . . . . . . . 1 2 . . 1 Misdirections 21 | . . . . . . . . . . . . . . . . . . . . . . . . . . . . 10 11 Weapon Failures 6 | . . . . . . . . . . . 2 1 . . . . . . . . . . . . . 1 . 2 . Overload Shots . | . . . . . . . . . . . . . . . . . . . . . . . . . . . . . . Overflow Damage 4923 | . . 54 1 . . . 14 89 8 31 85 . . 24 . . 438 8 294 . 65 . 676 . 111 . 686 1628 711 Projectiles 116 | . . . . . . . 6 . . . . . . . . . . . . . . . . . . . . 110 . Explosions 169 | . . 54 1 . . . 8 15 8 10 12 . . 24 . . . . 36 . . . . . . . 1 . . Melee 4638 | . . . . . . . . 74 . 21 73 . . . . . 438 8 258 . 65 . 676 . 111 . 685 1518 711 Knockbacks 29 | . . . . . . . 2 3 1 . . . . . . . . . . . . 2 5 . 2 . 9 5 . Impact 20 | . . . . . . . . . . . . . . . . . . . . . . 2 4 . 2 . 9 3 . Kinetic 5 | . . . . . . . 1 3 1 . . . . . . . . . . . . . . . . . . . . Secondary 4 | . . . . . . . 1 . . . . . . . . . . . . . . . 1 . . . . 2 . Self-Inflicted Damage 475 | . . 42 11 44 . 46 36 13 . 32 . 19 . 135 . . . . . . . . . . . . 97 . . Shots 16 | . . 1 1 2 . 1 1 1 . 2 . 1 . 5 . . . . . . . . . . . . 1 . . Rammed 4 | . . . . . . . . . 2 . . . . . . . . . . . . . . . . . 2 . . Targets Rammed 5 | . . . . . . . . . 3 . . . . . . . . . . . . . . . . . 2 . . Kicked . | . . . . . . . . . . . . . . . . . . . . . . . . . . . . . . Crushed 1 | . . . . . . . . . 1 . . . . . . . . . . . . . . . . . . . . Highest Temperature 414 | 54 162 . 192 46 180 99 156 162 414 384 394 270 189 297 244 204 . 83 377 12 200 246 87 . 251 281 276 269 203 Average Temperature 68 | 22 42 . 53 26 70 45 53 47 77 98 86 72 87 93 80 106 . 32 69 6 46 64 30 . 64 107 57 111 90 Received Heat Transfer 4053 | . 111 . 255 150 . 27 324 63 342 279 360 54 27 264 54 . 12 243 167 . . . 31 . . . 525 54 711 Effects 10 | . . . . . . . . . 2 1 2 1 . . 1 . . . 1 . . . . . . 1 1 . . Shutdowns 3 | . . . . . . . . . 1 1 . . . . . . . . 1 . . . . . . . . . . Energy Bleed 7 | . . . . . . . . . 1 . 2 1 . . 1 . . . . . . . . . . 1 1 . . Siege Activations 1 | . . . . . . . . . 1 . . . . . . . . . . . . . . . . . . . . Total Turns 324 | . . . . . . . . . 324 . . . . . . . . . . . . . . . . . . . . Longest Duration 324 | . . . . . . . . . 324 . . . . . . . . . . . . . . . . . . . . Martial Activations . | . . . . . . . . . . . . . . . . . . . . . . . . . . . . . . Shielding Activations . | . . . . . . . . . . . . . . . . . . . . . . . . . . . . . . Robots Disrupted 1 | . . . . . . . . . . . . . . . . . . . . . . . . . 1 . . . . Combat Hostiles 1 | . . . . . . . . . . . . . . . . . . . . . . . . . 1 . . . . Robots Corrupted 19 | . . . . . . . . 1 . . . 2 . . . . . . . . . . 5 . 2 . 6 2 1 Combat Hostiles 6 | . . . . . . . . . . . . 2 . . . . . . . . . . 1 . . . 1 1 1 Parts Fried 40 | . . . . . . . . 1 . . . 3 . . 1 . . . . . . . 6 . 4 . 17 5 3 Impact Corruptions 67 | . . . . . . . . 3 . . . . . . . . . . . . . . 17 . 3 . 20 24 . Robots Melted 2 | . . . . . . . . . . . . 1 . . . . . . . . . . . . . . 1 . . Combat Hostiles 2 | . . . . . . . . . . . . 1 . . . . . . . . . . . . . . 1 . . Parts Melted 24 | . 2 . 2 . . . . . . 4 1 8 1 4 2 . . . . . . . . . . . . . . Heat Transferred 14385 | 300 1569 . 1517 . . . . . 1036 1887 1258 2257 346 1111 2200 150 . . . . . . . . . . 191 563 . Parts Sabotaged . | . . . . . . . . . . . . . . . . . . . . . . . . . . . . . . Parts Stolen . | . . . . . . . . . . . . . . . . . . . . . . . . . . . . . . Parts Stripped . | . . . . . . . . . . . . . . . . . . . . . . . . . . . . . . Power Chain Reactions 2 | . . . . . . . . . . . . . 1 1 . . . . . . . . . . . . . . . Alert | -11 -10 -10 -9 -9 -9 -8 -8 -8 -8 -8 -8 -8 -7 -7 -7 -7 -7 -7 -5 -5 -5 -5 -4 -4 -4 -4 -3 -3 -3 ------- Run | Yrd Mat Min Mat Min Exi Min Mat Gar Mat Gar Mat Gar Fac Gar Fac Sto Rec Scr Fac Was Fac DSF Fac Was Fac Gar Res Qua Frg Maximum Alert Level 5 | . . . 2 1 . . 1 5 4 5 3 4 3 4 4 2 . . 1 . . 1 3 1 . 4 5 3 3 Low Security (%) 31 | 100 100 100 64 32 . 100 36 5 . . . . . . 6 . 100 . 96 100 100 71 48 . 100 15 . . . Level 1 7 | . . . 2 67 . . 63 16 . . . . . . 5 60 . . 3 . . 28 6 100 . 11 . . . Level 2 18 | . . . 33 . . . . 24 34 2 43 32 75 8 37 40 . . . . . . 43 . . 21 . . 52 Level 3 28 | . . . . . . . . 22 52 43 56 54 24 64 46 . . . . . . . . . . 7 53 100 47 Level 4 12 | . . . . . . . . 22 12 49 . 12 . 27 2 . . . . . . . . . . 43 44 . . Level 5 1 | . . . . . . . . 9 . 3 . . . . . . . . . . . . . . . . 2 . . High Security . | . . . . . . . . . . . . . . . . . . . . . . . . . . . . . . Max Security . | . . . . . . . . . . . . . . . . . . . . . . . . . . . . . . Sterilizations 1 | . . . . . . . . . . . . . . . . . . . . . . 1 . . . . . . . Peak Influence 1774 | 10 159 120 510 289 . 98 309 1774 1126 1659 890 1209 756 1167 1344 482 175 . 271 102 40 252 707 240 168 1528 1634 932 954 Initial 879 | . . 21 39 195 . . 21 181 864 703 808 492 634 522 612 482 141 . . 92 36 2 132 240 168 12 859 879 491 Average 586 | 1 86 20 214 213 . 29 187 848 833 1138 736 827 674 902 692 400 58 . 97 76 9 148 322 240 69 853 1181 822 698 Influence Increases 20222 | 20 474 238 1013 288 . 236 708 1693 914 1086 553 757 232 765 1738 126 395 . 937 10 21 330 1713 . 413 1616 2344 589 1013 Destroy 0b10 Robot/C 9700 | . 300 120 620 200 . 140 480 540 500 620 320 340 120 440 620 40 40 . 480 . . 220 980 . 120 640 1080 180 560 Destroy 0b10 Robot/NC 810 | 20 30 . 60 . . 10 40 5 70 5 55 20 10 5 105 5 50 . 60 . 5 . 60 . 15 . 70 85 25 Destroy Leader 1634 | . 64 20 154 40 . 30 98 20 112 20 90 30 32 30 150 20 . . 88 . 2 30 182 . 34 40 244 34 70 Allied During Kill 2335 | . . 18 39 . . . . 69 . 55 8 24 11 12 462 45 43 . 19 . . 48 306 . 8 600 502 . 66 Successful Hack 597 | . 32 . 25 5 . . 9 18 10 28 36 . 24 7 24 14 76 . 32 . 4 . 52 . 22 . 111 57 11 Select Force Hacks 210 | . . . . . . . . . . . . . 30 . . . 180 . . . . . . . . . . . . Disable Machine 765 | . . 30 30 15 . . 30 . 75 . . 75 . . 180 . . . 45 . . . 15 . 60 . 60 75 75 Anti-Garrison Action 1950 | . . . . . . . . 850 . 250 . 200 . 200 150 . . . . . . . . . . 300 . . . Destroy Structure 1246 | . 18 50 25 28 . 56 36 191 87 93 29 68 5 71 47 2 6 . 138 10 10 2 28 . 34 36 82 8 86 Partial Spotted 105 | . . . . . . . . . 15 . . . . . . . . . . . . 30 . . 30 . 30 . . Lose Combat Pursuer 870 | . 30 . 60 . . . 15 . 45 15 15 . . . . . . . 75 . . . 90 . 90 . 165 150 120 Influence Decreases 19412 | 20 418 192 615 665 123 180 485 198 1606 509 1455 305 695 344 1845 824 757 . 674 221 69 82 1277 448 635 106 2309 1278 1077 Entered New Map 7788 | . . 35 63 305 123 . 35 98 910 379 851 265 575 224 555 578 221 . . 171 16 2 120 448 72 6 669 684 383 Time Decay 7680 | 20 418 157 442 350 . 180 430 . 676 . 434 . 100 . 595 246 499 . 474 50 53 . 597 . 421 . 640 464 434 Lost Part 740 | . . . 20 10 . . 20 20 . 30 . 20 . 100 20 . . . 40 . . 40 20 . . 20 140 130 110 Lost Ally 2179 | . . . 90 . . . . 80 20 100 20 20 20 20 100 . 37 . 160 . . 40 390 . 142 80 860 . . Purge Threat 1025 | . . . . . . . . . . . 150 . . . 575 . . . . . . . 150 . . . . . 150 Squads Dispatched 102 | . 4 . 6 . . . 3 . 10 . 2 . 4 . 12 1 . . 8 . 2 1 12 . 7 . 18 5 7 Investigation 17 | . 1 . 2 . . . 1 . 1 . . . 2 . 2 . . . 1 . 2 . 1 . 3 . 1 . . Extermination 25 | . . . . . . . . . . . . . . . 3 1 . . 3 . . . 5 . 2 . 6 3 2 Reinforcement 35 | . 3 . 3 . . . 1 . 4 . 1 . 1 . 3 . . . 4 . . 1 5 . 2 . 4 1 2 Assault 20 | . . . 1 . . . . . 3 . 1 . . . 4 . . . . . . . . . . . 7 1 3 Garrison 5 | . . . . . . . 1 . 2 . . . 1 . . . . . . . . . 1 . . . . . . Intercept . | . . . . . . . . . . . . . . . . . . . . . . . . . . . . . . Searches Triggered . | . . . . . . . . . . . . . . . . . . . . . . . . . . . . . . Unchained Authorized 1 | . . . . . . . . . 1 . . . . . . . . . . . . . . . . . . . . Construction Impeded 3 | . . . . . . . . . 1 . . . . . . . . . 1 . . . 1 . . . . . . Haulers Reinforced 2 | . . . . . . . . . . . . . . . . . . . 1 . . . . . . . . 1 . Active Scanning Responses . | . . . . . . . . . . . . . . . . . . . . . . . . . . . . . . Cargo Convoy Interrupts 2 | . . . . . . . . . . . . . . . . . . . 1 . . . 1 . . . . . . Stealth | -11 -10 -10 -9 -9 -9 -8 -8 -8 -8 -8 -8 -8 -7 -7 -7 -7 -7 -7 -5 -5 -5 -5 -4 -4 -4 -4 -3 -3 -3 --------- Run | Yrd Mat Min Mat Min Exi Min Mat Gar Mat Gar Mat Gar Fac Gar Fac Sto Rec Scr Fac Was Fac DSF Fac Was Fac Gar Res Qua Frg Distress Signals 35 | . . . 3 . . . 6 . 4 . 3 . . . 3 . . . 1 . . . 7 . 1 . 2 4 1 Communications Jammed 371 | . . . . . . . . . . . 42 . . . 26 . . . . . 2 . . . 1 . 299 . 1 Distress Signals 371 | . . . . . . . . . . . 42 . . . 26 . . . . . 2 . . . 1 . 299 . 1 Times Spotted 675 | . 25 6 40 11 24 7 32 24 48 32 26 20 7 22 36 2 2 8 26 . 1 8 52 3 13 32 99 27 42 Peak Tracking Total 12 | . 4 3 8 4 9 3 8 4 6 5 7 5 2 8 5 1 1 9 7 . 1 4 10 3 8 6 12 7 7 Tactical Retreats 44 | . 2 . 4 . 8 . 1 . 2 1 1 . . . . . . . 2 . . . 3 . 2 . 7 5 6 Traps | -11 -10 -10 -9 -9 -9 -8 -8 -8 -8 -8 -8 -8 -7 -7 -7 -7 -7 -7 -5 -5 -5 -5 -4 -4 -4 -4 -3 -3 -3 ------- Run | Yrd Mat Min Mat Min Exi Min Mat Gar Mat Gar Mat Gar Fac Gar Fac Sto Rec Scr Fac Was Fac DSF Fac Was Fac Gar Res Qua Frg Traps Triggered 44 | . . . . . . . . 6 1 6 . 7 . 3 2 . . . 1 . . 2 3 . 1 10 1 . 1 Indirectly . | . . . . . . . . . . . . . . . . . . . . . . . . . . . . . . Trap Hack Attempts . | . . . . . . . . . . . . . . . . . . . . . . . . . . . . . . Triggered . | . . . . . . . . . . . . . . . . . . . . . . . . . . . . . . Disarmed . | . . . . . . . . . . . . . . . . . . . . . . . . . . . . . . Reprogrammed . | . . . . . . . . . . . . . . . . . . . . . . . . . . . . . . Reused . | . . . . . . . . . . . . . . . . . . . . . . . . . . . . . . Traps Extracted . | . . . . . . . . . . . . . . . . . . . . . . . . . . . . . . Installed 1 | . . . . . . . . . . . . 1 . . . . . . . . . . . . . . . . . Triggered . | . . . . . . . . . . . . . . . . . . . . . . . . . . . . . . Most Traps Carried 2 | . . . . . . . . . . . . 2 1 1 . . . . . . . . . . . . . . . Objects Rigged 4 | . . . . . . . . 1 . . . . . . . . . . . . . . . . . . . . 3 Exploded 3 | . . . . . . . . . . . . . . . . . . . . . . . . . . . . . 3 Time Bombs Activated 1 | . . . . . . . . 1 . . . . . . . . . . . . . . . . . . . . . Exploded 1 | . . . . . . . . 1 . . . . . . . . . . . . . . . . . . . . . Machines | -11 -10 -10 -9 -9 -9 -8 -8 -8 -8 -8 -8 -8 -7 -7 -7 -7 -7 -7 -5 -5 -5 -5 -4 -4 -4 -4 -3 -3 -3 ---------- Run | Yrd Mat Min Mat Min Exi Min Mat Gar Mat Gar Mat Gar Fac Gar Fac Sto Rec Scr Fac Was Fac DSF Fac Was Fac Gar Res Qua Frg Machines Disabled 87 | . . 2 3 1 10 . 2 3 5 3 . 9 . 2 13 . . 5 3 . . . 1 . 4 5 4 6 6 Max in Single Turn 3 | . . 1 1 1 2 . 1 1 1 1 . 2 . 1 . . . 1 1 . . . 1 . 3 1 1 1 1 Garrison Access 9 | . . . . . . . . . . . . . . . 1 . . . 2 . . . 1 . 1 . 3 . 1 Garrison Relay 15 | . . . . . . . . 3 . 3 . 2 . 2 . . . . . . . . . . . 5 . . . Machines Repaired . | . . . . . . . . . . . . . . . . . . . . . . . . . . . . . . Machines Dismantled . | . . . . . . . . . . . . . . . . . . . . . . . . . . . . . . Machines Sabotaged . | . . . . . . . . . . . . . . . . . . . . . . . . . . . . . . Overloaded Fab Kills . | . . . . . . . . . . . . . . . . . . . . . . . . . . . . . . Hacking | -11 -10 -10 -9 -9 -9 -8 -8 -8 -8 -8 -8 -8 -7 -7 -7 -7 -7 -7 -5 -5 -5 -5 -4 -4 -4 -4 -3 -3 -3 --------- Run | Yrd Mat Min Mat Min Exi Min Mat Gar Mat Gar Mat Gar Fac Gar Fac Sto Rec Scr Fac Was Fac DSF Fac Was Fac Gar Res Qua Frg Machines Accessed 150 | . 6 . 5 1 2 . 5 4 5 3 6 1 3 1 13 4 11 . 11 . 5 . 15 . 10 3 21 10 5 Terminals 84 | . 5 . 4 1 . . 1 4 3 3 3 1 1 1 5 3 5 . 3 . 2 . 8 . 7 3 11 6 4 Fabricators 16 | . . . . . . . . . . . . . . . 5 . . . 2 . 2 . 3 . 1 . 3 . . Repair Stations 7 | . . . . . . . 2 . . . . . . . . 1 . . 1 . . . 1 . . . 1 1 . Recycling Units 12 | . 1 . . . . . . . . . . . . . 1 . 6 . 2 . 1 . . . . . 1 . . Scanalyzers 14 | . . . 1 . . . 1 . 1 . 2 . 1 . 1 . . . 1 . . . 1 . . . 2 3 . Garrison Access 15 | . . . . . . . 1 . 1 . 1 . 1 . 1 . . . 2 . . . 2 . 2 . 3 . 1 Total Hacks 430 | . 20 . 18 3 5 . 18 10 17 7 25 1 8 1 47 10 42 . 38 . 14 . 55 . 18 4 39 19 11 Successful 239 | . 9 . 8 2 5 . 14 2 8 3 16 . 4 1 22 7 27 . 24 . 7 . 35 . 9 . 21 8 7 Failed 191 | . 11 . 10 1 . . 4 8 9 4 9 1 4 . 25 3 15 . 14 . 7 . 20 . 9 4 18 11 4 Catastrophic 44 | . 2 . 2 . . . . 2 3 2 2 1 1 . 4 . 1 . 1 . 1 . 7 . 3 2 5 4 1 Database Lockouts . | . . . . . . . . . . . . . . . . . . . . . . . . . . . . . . Manual 172 | . 12 . 6 3 1 . 8 3 7 5 8 . 3 . 16 3 26 . 10 . 8 . 17 . 6 1 14 10 5 Terminals 219 | . 18 . 10 3 . . 8 10 5 7 10 1 2 1 20 5 25 . 10 . 2 . 24 . 14 4 21 10 9 Fabricators 73 | . . . . . . . . . . . . . . . 18 . . . 16 . 11 . 21 . 1 . 6 . . Repair Stations 19 | . . . . . . . 6 . . . . . . . . 5 . . 3 . . . 3 . . . 1 1 . Recycling Units 32 | . 2 . . . . . . . . . . . . . 3 . 17 . 4 . 1 . . . . . 5 . . Scanalyzers 54 | . . . 8 . . . 3 . 8 . 12 . 3 . 3 . . . 2 . . . 4 . . . 3 8 . Garrison Access 28 | . . . . . . . 1 . 4 . 3 . 3 . 3 . . . 3 . . . 3 . 3 . 3 . 2 Terminal Hacks 64 | . 6 . 3 2 5 . 1 2 . 2 3 . . 1 6 3 4 . 1 . 2 . 8 . 4 . 7 1 3 Record 5 | . . . . . 4 . . . . . . . . . . . . . . . . . . . . . 1 . . Part Schematic 3 | . 1 . . . . . . . . . . . . . . . 1 . . . . . . . . . 1 . . Robot Schematic 1 | . 1 . . . . . . . . . . . . . . . . . . . . . . . . . . . . Robot Analysis 5 | . 2 . . 2 . . . . . . . . . . . . 1 . . . . . . . . . . . . Prototype ID Bank 2 | . 1 . . . . . . . . . . . . . . . 1 . . . . . . . . . . . . Open Door 5 | . . . . . . . . 1 . 1 . . . 1 . 2 . . . . . . . . . . . . . Open DSF 3 | . . . . . . . . . . . . . . . . . . . . . 2 . . . 1 . . . . Level Access Points 1 | . . . 1 . . . . . . . . . . . . . . . . . . . . . . . . . . Branch Access Points 4 | . . . . . . . 1 . . . . . . . 1 . . . 1 . . . . . . . 1 . . Emergency Access Points 2 | . . . . . . . . 1 . 1 . . . . . . . . . . . . . . . . . . . Terminal Index 2 | . . . . . . . . . . . . . . . 1 . 1 . . . . . . . . . . . . Fabricator Index 1 | . . . . . . . . . . . . . . . . . . . . . . . 1 . . . . . . Scanalyzer Index 2 | . . . . . . . . . . . 1 . . . . . . . . . . . 1 . . . . . . Garrison Index 2 | . . . . . . . . . . . . . . . . . . . . . . . 1 . 1 . . . . Unreport Threat 5 | . . . . . . . . . . . 1 . . . 2 . . . . . . . 1 . . . . . 1 Locate Traps 5 | . . . 1 . . . . . . . . . . . 1 1 . . . . . . 1 . 1 . . . . Recall Extermination 2 | . . . . . . . . . . . . . . . . . . . . . . . 1 . . . 1 . . Hauler Manifests 2 | . 1 . 1 . . . . . . . . . . . . . . . . . . . . . . . . . . Registered Components 3 | . . . . . . . . . . . . . . . 1 . . . . . . . 1 . . . 1 . . Registered Prototypes 1 | . . . . . . . . . . . . . . . . . . . . . . . 1 . . . . . . Zone Layout 6 | . . . . . . . . . . . 1 . . . . . . . . . . . . . 1 . 2 1 1 Proto ID Catalog 2 | . . . . . 1 . . . . . . . . . . . . . . . . . . . . . . . 1 Fabricator Hacks 39 | . . . . . . . . . . . . . . . 8 . . . 11 . 2 . 15 . . . 3 . . Network Status 2 | . . . . . . . . . . . . . . . 1 . . . . . 1 . . . . . . . . Load Schematic 21 | . . . . . . . . . . . . . . . 4 . . . 6 . 1 . 8 . . . 2 . . Build 16 | . . . . . . . . . . . . . . . 3 . . . 5 . . . 7 . . . 1 . . Repair Station Hacks 13 | . . . . . . . 6 . . . . . . . . 4 . . 1 . . . 2 . . . . . . Scan Component 7 | . . . . . . . 3 . . . . . . . . 2 . . 1 . . . 1 . . . . . . Repair 6 | . . . . . . . 3 . . . . . . . . 2 . . . . . . 1 . . . . . . Recycling Unit Hacks 14 | . 2 . . . . . . . . . . . . . 1 . 8 . 2 . . . . . . . 1 . . Process 1 | . 1 . . . . . . . . . . . . . . . . . . . . . . . . . . . . Report Inventory 10 | . 1 . . . . . . . . . . . . . 1 . 6 . 1 . . . . . . . 1 . . Retrieve Components 3 | . . . . . . . . . . . . . . . . . 2 . 1 . . . . . . . . . . Scanalyzer 30 | . . . 4 . . . 3 . 5 . 7 . 1 . 1 . . . 1 . . . 2 . . . . 6 . Insert Component 15 | . . . 2 . . . 1 . 3 . 4 . . . 1 . . . . . . . 1 . . . . 3 . Analyze 11 | . . . 2 . . . 1 . 2 . 3 . . . . . . . . . . . 1 . . . . 2 . Retrieve Study 4 | . . . . . . . 1 . . . . . 1 . . . . . 1 . . . . . . . . 1 . Garrison Access Hacks 22 | . . . . . . . 1 . 2 . 2 . 2 . 1 . . . 3 . . . 3 . 3 . 3 . 2 Unlock Access 7 | . . . . . . . 1 . 1 . 1 . 1 . 1 . . . . . . . 1 . 1 . . . . Seal Access 8 | . . . . . . . . . . . . . . . . . . . 2 . . . 1 . 1 . 3 . 1 Coupler Status 7 | . . . . . . . . . 1 . 1 . 1 . . . . . 1 . . . 1 . 1 . . . 1 Unauthorized Hacks 57 | . 1 . 1 . . . 3 . 1 1 4 . 1 . 5 . 15 . 5 . 3 . 5 . 2 . 7 1 2 Terminals 31 | . 1 . 1 . . . 3 . 1 1 3 . . . 3 . 9 . 2 . . . 2 . 1 . 2 . 2 Track 6 | . . . . . . . . . . . . . . . 1 . 2 . . . . . . . . . 1 . 2 Botnet 17 | . 1 . . . . . 1 . 1 1 3 . . . 2 . 2 . 2 . . . 2 . 1 . 1 . . Operators 1 | . . . . . . . 1 . . . . . . . . . . . . . . . . . . . . . . Skim 7 | . . . 1 . . . 1 . . . . . . . . . 5 . . . . . . . . . . . . Fabricators 11 | . . . . . . . . . . . . . . . 1 . . . 2 . 3 . 3 . 1 . 1 . . Prioritize 2 | . . . . . . . . . . . . . . . . . . . 1 . . . 1 . . . . . . Liberate 2 | . . . . . . . . . . . . . . . 1 . . . . . . . . . 1 . . . . Haulers 2 | . . . . . . . . . . . . . . . . . . . . . 1 . 1 . . . . . . Recompile 5 | . . . . . . . . . . . . . . . . . . . 1 . 2 . 1 . . . 1 . . Repair Stations . | . . . . . . . . . . . . . . . . . . . . . . . . . . . . . . Recycling Units 11 | . . . . . . . . . . . . . . . 1 . 6 . 1 . . . . . . . 3 . . Reject 1 | . . . . . . . . . . . . . . . . . . . . . . . . . . . 1 . . Recyclers 3 | . . . . . . . . . . . . . . . 1 . . . 1 . . . . . . . 1 . . Mask 1 | . . . . . . . . . . . . . . . . . . . . . . . . . . . 1 . . Tunnel 6 | . . . . . . . . . . . . . . . . . 6 . . . . . . . . . . . . Scanalyzers 2 | . . . . . . . . . . . . . . . . . . . . . . . . . . . 1 1 . Researchers 2 | . . . . . . . . . . . . . . . . . . . . . . . . . . . 1 1 . Garrison Access 2 | . . . . . . . . . . . 1 . 1 . . . . . . . . . . . . . . . . Reprogram 1 | . . . . . . . . . . . 1 . . . . . . . . . . . . . . . . . . Eject 1 | . . . . . . . . . . . . . 1 . . . . . . . . . . . . . . . . Data Cores Recovered 6 | . . . . . . . . . . . 1 . . . 1 . . . . . . . 2 . . . . 2 . Used 3 | . . . . . . . . . . . . . . . 1 . . . . . . . 1 . . . . 1 . Hacking Detections 123 | . 6 . 5 1 . . 4 4 5 2 6 1 2 . 12 3 7 . 10 . 3 . 13 . 6 3 16 10 4 Full Trace Events 12 | . 1 . 2 . . . 1 2 1 . . . 1 . 2 . . . . . . . . . 1 1 . . . Feedback Events 1 | . . . . . . . . . . . . . . . . . . . . . . . . . . 1 . . . Hackware Fried 1 | . . . . . . . . . . . . . . . . . . . . . . . . . . 1 . . . Feedback Blocked . | . . . . . . . . . . . . . . . . . . . . . . . . . . . . . . Robot Schematics Acquired 54 | . 1 . . . . . . . 53 . . . . . . . . . . . . . . . . . . . . Robots Built 10 | . . . . . . . . . . . . . . . 6 . . . 2 . . . 2 . . . . . . Authchips 5 | . . . . . . . . . . . . . . . 3 . . . 1 . . . 1 . . . . . . Time 459 | . . . . . . . . . . . . . . . 306 . . . 51 . . . 102 . . . . . . Total Robot Build Rating 80 | . . . . . . . . . . . . . . . 48 . . . 16 . . . 16 . . . . . . Part Schematics Acquired 29 | . 1 . 2 . . . 1 . 1 . 3 . . . . . 1 1 9 1 3 1 1 . . . . 2 2 Parts Built 11 | . . . . . . . . . . . . . . . . . . . 4 . . . 6 . . . 1 . . Authchips 11 | . . . . . . . . . . . . . . . . . . . 4 . . . 6 . . . 1 . . Time 929 | . . . . . . . . . . . . . . . . . . . 152 . . . 625 . . . 152 . . Total Part Build Rating 68 | . . . . . . . . . . . . . . . . . . . 22 . . . 41 . . . 5 . . Part Studies Acquired 4 | . . . . . . . 1 . . . . . 1 . . . . . 1 . . . . . . . . 1 . Parts Repaired 6 | . . . . . . . 3 . . . . . . . . 2 . . . . . . 1 . . . . . . Time 323 | . . . . . . . 120 . . . . . . . . 100 . . . . . . 103 . . . . . . Parts Recycled . | . . . . . . . . . . . . . . . . . . . . . . . . . . . . . . Recycled Matter 216 | . 216 . . . . . . . . . . . . . . . . . . . . . . . . . . . . Retrieved Matter . | . . . . . . . . . . . . . . . . . . . . . . . . . . . . . . Retrieved Components 6 | . . . . . . . . . . . . . . . . . 5 . 1 . . . . . . . . . . Parts Scanalyzed 12 | . . . 2 . . . 1 . 2 . 3 . . . 1 . . . . . . . 1 . . . . 2 . Part Schematics Acquired 10 | . . . 2 . . . 1 . 1 . 3 . . . . . . . . . . . 1 . . . . 2 . Parts Damaged 5 | . . . . . . . 1 . 2 . 1 . . . . . . . . . . . . . . . . 1 . Bothacking | -11 -10 -10 -9 -9 -9 -8 -8 -8 -8 -8 -8 -8 -7 -7 -7 -7 -7 -7 -5 -5 -5 -5 -4 -4 -4 -4 -3 -3 -3 ------------ Run | Yrd Mat Min Mat Min Exi Min Mat Gar Mat Gar Mat Gar Fac Gar Fac Sto Rec Scr Fac Was Fac DSF Fac Was Fac Gar Res Qua Frg Used RIF Installer 5 | . . . . . . . . 1 . 1 . 1 . 1 . . . . . . . . . . . 1 . . . Command Fork 1 | . . . . . . . . . . . . 1 . . . . . . . . . . . . . . . . . Signal Jammer 1 | . . . . . . . . . . 1 . . . . . . . . . . . . . . . . . . . Zone Cloak 1 | . . . . . . . . . . . . . . . . . . . . . . . . . . 1 . . . Structural Interface 1 | . . . . . . . . . . . . . . 1 . . . . . . . . . . . . . . . Robots Hacked 70 | . . . . . 4 . . 1 1 7 . 8 . 3 9 . . 2 3 . . . . . 3 14 13 1 1 Non-combat 21 | . . . . . 3 . . . 1 1 . . . . 6 . . . 2 . . . . . 2 . 6 . . Combat 49 | . . . . . 1 . . 1 . 6 . 8 . 3 3 . . 2 1 . . . . . 1 14 7 1 1 Robot Hacks Applied 82 | . . . . . 4 . . 1 1 8 . 10 . 3 11 . . 2 3 . . . . . 4 15 17 2 1 parse_system 15 | . . . . . 4 . . 1 1 1 . . . . 2 . . 2 . . . . . . 1 1 1 1 . generate_echo 1 | . . . . . . . . . . . . . . . . . . . . . . . . . 1 . . . . ignore_repairs 2 | . . . . . . . . . . . . . . . . . . . . . . . . . . . 2 . . map_walls 1 | . . . . . . . . . . . . . . . . . . . . . . . . . . . 1 . . find_fabricator 3 | . . . . . . . . . . . . . . . . . . . 2 . . . . . . . 1 . . drop_inventory 3 | . . . . . . . . . . . . . . . 2 . . . . . . . . . . . 1 . . ignore_parts 1 | . . . . . . . . . . . . . . . 1 . . . . . . . . . . . . . . purge_threat 2 | . . . . . . . . . . . . . . . 2 . . . . . . . . . . . . . . map_route 4 | . . . . . . . . . . . . . . . . . . . . . . . . . 1 . 3 . . find_garrison 1 | . . . . . . . . . . . . . . . 1 . . . . . . . . . . . . . . link_fov 1 | . . . . . . . . . . . . . . . . . . . . . . . . . 1 . . . . scatter_targeting 2 | . . . . . . . . . . . . . . . 1 . . . . . . . . . . . 1 . . disrupt_area 3 | . . . . . . . . . . . . . . . . . . . . . . . . . . 3 . . . amplify_resonance 8 | . . . . . . . . . . . . 1 . . 1 . . . . . . . . . . 1 5 . . disable_weapons 3 | . . . . . . . . . . . . . . . . . . . . . . . . . . 3 . . . reboot_system 4 | . . . . . . . . . . . . 1 . 1 . . . . . . . . . . . 1 . . 1 overwrite_iff 9 | . . . . . . . . . . 3 . 2 . 1 . . . . . . . . . . . 2 1 . . formatsys_low 4 | . . . . . . . . . . 1 . 2 . . 1 . . . . . . . . . . . . . . formatsys_high 15 | . . . . . . . . . . 3 . 4 . 1 . . . . 1 . . . . . . 4 1 1 . Relay Couplers Released 83 | . . . . . . . . 15 . 12 . 8 3 11 3 . . . 2 . . . 2 . 3 21 2 . 1 Ejected 3 | . . . . . . . . . . . . . 3 . . . . . . . . . . . . . . . . Machine Destruction 70 | . . . . . . . . 12 . 12 . 8 . 7 3 . . . 2 . . . 2 . 3 18 2 . 1 Programmers 10 | . . . . . . . . 3 . . . . . 4 . . . . . . . . . . . 3 . . . Attached 27 | . . . . . . . . . . 4 . 6 . 2 1 . . . 1 . . . 1 . 1 7 2 2 . Fabnet Peak Effective % . | . . . . . . . . . . . . . . . . . . . . . . . . . . . . . . Robots Rewired 19 | . . . . . . . . 3 . 1 . . . 2 . . . . . . . . . . 1 12 . . . Allies Hacked 11 | . . . . . . . . . . 2 . . . . 1 . . . 1 . . . 3 . . . 2 1 1 Hacks Repelled 2 | . . . . . . . . . . . . . . . . . . . . . . . 2 . . . . . . Allies | -11 -10 -10 -9 -9 -9 -8 -8 -8 -8 -8 -8 -8 -7 -7 -7 -7 -7 -7 -5 -5 -5 -5 -4 -4 -4 -4 -3 -3 -3 -------- Run | Yrd Mat Min Mat Min Exi Min Mat Gar Mat Gar Mat Gar Fac Gar Fac Sto Rec Scr Fac Was Fac DSF Fac Was Fac Gar Res Qua Frg Total Allies 157 | . . 5 . . . . . 6 1 10 . 6 . 5 10 10 . . 9 . 7 . 20 . 17 20 29 2 . Largest Group 23 | . . 5 5 . . . . 3 2 5 2 4 3 2 9 11 11 7 4 . 6 6 12 1 8 23 22 1 1 Highest-Rated Group 838 | . . 93 93 . . . . 239 78 124 54 67 52 71 563 199 199 135 225 . 53 60 280 10 119 838 829 344 344 Highest-Rated Ally 344 | . . 31 31 . . . . 178 39 39 31 22 22 39 82 29 29 29 82 . 10 10 82 10 56 58 58 344 344 Total Orders 48 | . . . . . . . . . . 1 3 12 . . 6 2 5 5 5 . . . . . . . 5 4 . STAY 20 | . . . . . . . . . . . 1 5 . . 3 1 3 2 3 . . . . . . . 1 1 . FOLLOW 12 | . . . . . . . . . . . . 2 . . 3 1 2 2 2 . . . . . . . . . . GUARD 1 | . . . . . . . . . . . . . . . . . . 1 . . . . . . . . . . . AID 8 | . . . . . . . . . . 1 2 5 . . . . . . . . . . . . . . . . . EXPLORE 4 | . . . . . . . . . . . . . . . . . . . . . . . . . . . 3 1 . RETURN 3 | . . . . . . . . . . . . . . . . . . . . . . . . . . . 1 2 . Ally Attacks 1503 | . . . 34 . . . . 62 4 69 15 20 6 10 94 8 29 93 44 . . 78 207 . 19 219 399 2 91 Total Damage 31183 | . . . 429 . . . . 871 9 949 250 383 95 197 5586 123 386 2021 789 . . 783 3061 . 384 4959 6767 37 3104 Kills 265 | . . . 7 . . . . 12 . 10 3 7 3 4 43 2 2 19 10 . . 10 42 . 1 33 46 . 11 Allies Corrupted 13 | . . . . . . . . . . . . 1 . . . . . . . . . . 2 . . 2 8 . . Allies Melted . | . . . . . . . . . . . . . . . . . . . . . . . . . . . . . . Turrets Deployed 1 | . . . . . . . . . . . . . . . . . . 1 . . . . . . . . . . . Intel | -11 -10 -10 -9 -9 -9 -8 -8 -8 -8 -8 -8 -8 -7 -7 -7 -7 -7 -7 -5 -5 -5 -5 -4 -4 -4 -4 -3 -3 -3 ------- Run | Yrd Mat Min Mat Min Exi Min Mat Gar Mat Gar Mat Gar Fac Gar Fac Sto Rec Scr Fac Was Fac DSF Fac Was Fac Gar Res Qua Frg Active Infowar (turns) 13102 | 11 1059 900 216 . . . 275 . 1772 82 . . . . . 73 . . 1061 107 257 195 1994 13 997 7 2125 894 1064 Optics 2095 | . . . . . . . 275 . . . . . . . . . . . . . . . . . . . . 756 1064 Sensors 7276 | . . . . . . . . . . . . . . . . 73 . . 1059 107 257 163 1994 13 997 7 2125 481 . Zeronet 1854 | . . . . . . . . . 1772 82 . . . . . . . . . . . . . . . . . . . Terrain 279 | 11 256 . . . . . . . . . . . . . . . . . . . . . . . . . . 12 . Structural 1841 | . 803 900 107 . . . . . . . . . . . . . . . 2 . . 29 . . . . . . . T.N.C. 140 | . . . 140 . . . . . . . . . . . . . . . . . . . . . . . . . . Machine Analysis 75 | . . . 75 . . . . . . . . . . . . . . . . . . . . . . . . . . Cloaking 265 | . . . . . . . . . . . . . . . . . . . . . . . . . . . 15 1 249 Jamming 370 | . . . . . . . . . . . . . . . . . . . . . 218 33 . . . . . . 119 Robot Analysis Total 102 | . 2 . . 2 . . . . 97 . . . . . . . 1 . . . . . . . . . . . . Derelict Logs Recovered 4 | . . 3 . 1 . . . . . . . . . . . . . . . . . . . . . . . . . Drone Launches 9 | . . . . . . . . . . . . . . . . . . . . . . . . . . . 6 3 . Drone Recoveries 6 | . . . . . . . . . . . . . . . . . . . . . . . . . . . 3 3 . Exploration | -11 -10 -10 -9 -9 -9 -8 -8 -8 -8 -8 -8 -8 -7 -7 -7 -7 -7 -7 -5 -5 -5 -5 -4 -4 -4 -4 -3 -3 -3 ------------- Run | Yrd Mat Min Mat Min Exi Min Mat Gar Mat Gar Mat Gar Fac Gar Fac Sto Rec Scr Fac Was Fac DSF Fac Was Fac Gar Res Qua Frg Turns Passed 36042 | 133 1059 900 1136 796 1978 602 1123 2639 2649 1739 1072 1535 207 1662 1892 530 1403 2221 1381 113 257 309 2073 13 1093 1015 2280 1168 1064 Spaces Moved 20718 | 88 493 464 534 521 963 381 328 900 616 575 375 572 98 461 957 249 577 1334 1495 262 384 194 1561 59 1072 685 2692 966 862 Core 16 | 13 . . . . . . . . . . . . . . . . . . . . . . . . . . . . 3 Treads 3082 | . . . . . 10 . 195 279 616 508 375 572 98 339 88 2 . . . . . . . . . . . . . Legs 200 | . . . . . 78 . . . . . . . . 122 . . . . . . . . . . . . . . . Wheels 5411 | 75 493 464 534 521 875 381 133 621 . 67 . . . . 869 221 . . . . . . . . . . . 157 . Hover 12009 | . . . . . . . . . . . . . . . . 26 577 1334 1495 262 384 194 1561 59 1072 685 2692 809 859 Flight . | . . . . . . . . . . . . . . . . . . . . . . . . . . . . . . Fastest Speed 17 | 50 95 175 135 135 120 150 150 160 160 190 240 160 160 160 140 155 158 158 28 32 32 32 23 17 17 42 38 44 44 Average Speed 122 | 92 152 175 150 139 160 150 207 227 175 234 240 184 162 298 170 163 201 160 53 36 32 102 89 20 42 101 45 61 47 Slowest Speed 610 | 100 200 175 190 150 225 150 320 250 240 240 240 240 240 610 245 320 218 218 102 40 32 164 164 34 102 115 124 170 240 Overloaded Moves 174 | . . . . . . . . . . . . . . . . . . . . . . . 78 46 47 . 3 . . Propulsion Burnouts . | . . . . . . . . . . . . . . . . . . . . . . . . . . . . . . Robots Hopped . | . . . . . . . . . . . . . . . . . . . . . . . . . . . . . . Potential Cave-ins 8 | . . . . . . . . . . . . . . . . . . 2 . . . . . . . . 3 . 3 Cave-ins Triggered 1 | . . . . . . . . . . . . . . . . . . . . . . . . . . . 1 . . Exploration Rate (%) 58 | 4 75 92 57 98 86 89 33 93 57 83 45 65 4 51 36 24 75 58 33 95 11 97 36 66 23 91 65 82 20 Regions Visited 29 Branch Regions 9 Pre-discovered Areas 10 | . . 1 . . 1 . . . . . . . . . . . 8 . . . . . . . . . . . . Known Exits Taken 10 | . . . . . . 1 1 . 1 . 1 . 1 . 1 . . . . . 1 . . . 1 . 1 1 . Unknown Exits Taken 9 | 1 1 1 1 1 1 . . . . . . . . . . 1 1 1 . . . . . . . . . . . Scrap Searched 13 | . . 1 . 2 . 1 . . . . . . . . . . . 9 . . . . . . . . . . . Spaces Dug 291 | . 20 . 18 10 8 . 21 24 16 21 1 15 . . . . 6 5 17 . 5 1 11 . 15 17 33 2 25 Terrain Destroyed 936 | . 27 56 24 31 30 78 38 88 105 39 33 27 5 74 7 . 6 34 81 6 5 1 14 . 22 17 59 4 25 Melee 144 | . . . 2 . 2 . . 17 . 1 1 1 . . . . 6 1 17 . 5 1 11 . 15 17 20 2 25 Projectile 122 | . . . . . 4 . 2 6 56 4 6 3 1 1 . . . 5 3 . . . . . 4 . 25 2 . AOE 658 | . 27 56 22 31 24 78 36 65 48 34 24 23 4 73 7 . . 28 60 6 . . . . . . 12 . . Terrain Rammed . | . . . . . . . . . . . . . . . . . . . . . . . . . . . . . . Walls Destroyed . | . . . . . . . . . . . . . . . . . . . . . . . . . . . . . . Machines Disabled . | . . . . . . . . . . . . . . . . . . . . . . . . . . . . . . Actions | -11 -10 -10 -9 -9 -9 -8 -8 -8 -8 -8 -8 -8 -7 -7 -7 -7 -7 -7 -5 -5 -5 -5 -4 -4 -4 -4 -3 -3 -3 --------- Run | Yrd Mat Min Mat Min Exi Min Mat Gar Mat Gar Mat Gar Fac Gar Fac Sto Rec Scr Fac Was Fac DSF Fac Was Fac Gar Res Qua Frg Total 29039 | 115 702 548 747 561 1276 401 628 1247 2006 824 481 912 125 664 1148 368 783 1388 1953 278 506 288 2144 58 1640 971 3573 1388 1316 Wait 4858 | 5 88 75 91 21 135 4 183 44 1222 53 27 161 . 23 97 99 175 14 257 . 107 31 407 . 470 98 511 229 231 Move 20691 | 87 492 463 533 520 962 380 328 899 615 574 374 571 97 460 956 248 576 1333 1495 261 383 193 1561 58 1071 684 2690 965 862 Hop . | . . . . . . . . . . . . . . . . . . . . . . . . . . . . . . Pick Up 283 | 6 30 4 14 1 25 1 6 15 7 12 4 14 4 18 6 5 3 5 18 2 4 15 14 . 4 6 11 10 19 Fast Attach 184 | 7 2 . 3 . 4 1 7 1 . 4 2 1 . 17 10 4 2 5 12 5 . 8 18 . 5 7 13 31 15 Attach 130 | . . . 4 1 7 . 2 2 2 5 . 7 3 5 6 . 1 2 14 . 1 2 11 . 1 4 23 16 11 Detach 48 | . . . . . 1 . . . 2 . . . . 2 1 . 1 . 2 . . . 2 . . 1 16 12 8 Swap 390 | . 13 1 15 2 16 . 14 22 19 25 15 26 3 17 18 4 1 3 36 2 . 3 22 . 20 7 56 7 23 Drop 351 | . 21 1 19 1 25 2 13 18 5 8 3 8 4 25 13 6 6 8 24 7 4 14 26 . 8 8 20 18 36 Fire 1242 | 10 56 4 66 15 46 13 75 54 111 82 48 118 14 65 41 2 . 11 53 . . . 48 . 39 54 163 46 8 Melee 602 | . . . 2 . 55 . . 112 20 31 8 5 . . . . 18 7 42 1 7 9 35 . 22 24 53 52 99 Ram 3 | . . . . . . . . . . . . . . . . . . . . . . . . . . . 2 1 . Kick . | . . . . . . . . . . . . . . . . . . . . . . . . . . . . . . Crush 3 | . . . . . . . . . 3 . . . . . . . . . . . . . . . . . . . . Escape Stasis 188 | . . . . . . . . 48 . 30 . . . 5 . . . . . . . 13 . . . 78 14 . . Rewire 59 | . . . . . . . . 30 . . . . . 27 . . . . . . . . . . . . . 1 1 Trap 6 | . . . . . . . . 2 . . . 1 . . . . . . . . . . . . . . . . 3 Miscellaneous 1 | . . . . . . . . . . . . . . . . . . . . . . . . . . . 1 . . Route ------- -11/Scrapyard -10/Materials (discovered 4 exits: *Mat x2 / [*Min x2]) -10/Mines (discovered 2 exits: *Mat x2) -9/Materials (discovered 4 exits: *Mat x3 / *Min) -9/Mines (discovered 3 exits: *Mat x2 / *Exi) -9/Exiles (discovered 2 exits: [*Min x2]) -8/Mines (discovered 2 exits: *Mat x2) -8/Materials -8/Garrison (discovered 4 exits: *Mat x4) -8/Materials (discovered 2 exits: *Fac / Gar) -8/Garrison (discovered 4 exits: *Fac x3 / *Mat) -8/Materials -8/Garrison (discovered 2 exits: *Fac x2) -7/Factory -7/Garrison -7/Factory (discovered 6 exits: [*Fac x2] / *Sto x2 / *Low x2) -7/Storage -7/Recycling (discovered 2 exits: *Fac / [*Scr]) -7/Scraptown -5/Factory (discovered 3 exits: *Fac / Upp x2) -5/Waste -5/Factory (discovered 3 exits: *Upp / DSF / DSF) -5/DSF -4/Factory -4/Waste -4/Factory (discovered 2 exits: Res / Gar) -4/Garrison (discovered 3 exits: *Res x3) -3/Research (discovered 3 exits: *Res x2 / *Qua) -3/Quarantine (discovered 3 exits: *Res / *Sec / *Frg) -3/Protoforge (discovered 1 exit: *Res) History --------- Turn | Location | Event 21 | -11/Scrapyard | Discovered new exit (range 15) 134 | -11/Scrapyard | Entered Materials 134 | -10/Materials | Discovered new exit (range 8) 304 | -10/Materials | Build established: Mutant 549 | -10/Materials | Discovered new exit (range 8) 1011 | -10/Materials | Discovered new exit (range 13) 1148 | -10/Materials | Discovered new exit (range 6) 1193 | -10/Materials | Entered Mines 1311 | -10/Mines | Assisted by bots powering up and referring to "LRC-V3" 1472 | -10/Mines | Learned Materials stockpile data 1602 | -10/Mines | Discovered new exit (range 10) 1679 | -10/Mines | Found a damaged Exp. Sensor Array with a note attached 1683 | -10/Mines | Found Prototype Device 1734 | -10/Mines | Learned location of Zion (-6) 1745 | -10/Mines | Learned Materials trap positions 1887 | -10/Mines | A weapon hastily lodged in a ceiling crevice suddenly fell to the ground 1993 | -10/Mines | Discovered new exit (range 14) 2093 | -10/Mines | Entered Materials 2093 | -9/Materials | Accompanied by 5 allies 2093 | -9/Materials | Evolved 2 slots: Propulsion x1, Utility x1 2094 | -9/Materials | Loaded intel: 14 trap records 2098 | -9/Materials | Led the pair of lost Derelicts to an unsafe place 2202 | -9/Materials | Identified Exp. Sensor Array 2509 | -9/Materials | Lost 3 allies 2575 | -9/Materials | Discovered new exit (range 5) 2803 | -9/Materials | Identified exit to Materials 2876 | -9/Materials | Destroyed 9 combat bots 2893 | -9/Materials | First assault squad dispatched 3196 | -9/Materials | Discovered new exit (range 16) 3229 | -9/Materials | Entered Mines 3292 | -9/Mines | Deemed a non-threat by the Exiles lab entrance 3292 | -9/Mines | Discovered new exit (range 5) 3333 | -9/Mines | Discovered exit to Materials (range 6) 3374 | -9/Mines | Learned Materials garrison access intel 3422 | -9/Mines | Discovered exit to Materials (range 5) 3449 | -9/Mines | Build established: Scavenger-Mutant 4025 | -9/Mines | Entered Exiles 4048 | -9/Exiles | Discovered new exit (range 15) 4057 | -9/Exiles | Build established: Mutant 4066 | -9/Exiles | Met 8R-AWN 4090 | -9/Exiles | Met EX-HEX 4160 | -9/Exiles | Met EX-DEC 4240 | -9/Exiles | Met EX-BIN 4262 | -9/Exiles | Aligned with FarCom system 4264 | -9/Exiles | Given EX-Vault access code 4301 | -9/Exiles | Opened EX-Vault 4349 | -9/Exiles | Found YOLO Cannon 4352 | -9/Exiles | Found PSU Rigger 4386 | -9/Exiles | Warned to stay clear of 0b10 Research branches 4989 | -9/Exiles | Attacked by the Exiles 5102 | -9/Exiles | Core integrity fell below 50% 5168 | -9/Exiles | Destroyed 8R-AWN 5188 | -9/Exiles | Lost 6 parts (1p4n1u) 5188 | -9/Exiles | Found 8R-AWN's Boregun 5190 | -9/Exiles | Found 8R-AWN's Boregun 5210 | -9/Exiles | Found Exp. Targeting Computer 5213 | -9/Exiles | Found AS-neutralizer No. 17b 5639 | -9/Exiles | Destroyed EX-DEC 5646 | -9/Exiles | Destroyed EX-HEX 5689 | -9/Exiles | Destroyed EX-BIN 5709 | -9/Exiles | Build established: Scavenger-Mutant 5807 | -9/Exiles | Found Deploy-a-Sentry 5982 | -9/Exiles | Discovered new exit (range 14) 6003 | -9/Exiles | Stole three prototypes: PSU Rigger, YOLO Cannon, Deploy-a-Sentry 6003 | -9/Exiles | Entered Mines 6075 | -8/Mines | Build established: Mutant 6242 | -8/Mines | Discovered exit to Materials (range 9) 6584 | -8/Mines | Discovered exit to Materials (range 3) 6605 | -8/Mines | Entered Materials 6605 | -8/Materials | Evolved 2 slots: Propulsion x1, Utility x1 6606 | -8/Materials | Loaded intel: 1 garrison access location 6981 | -8/Materials | Garrison activated, responded to threat 7038 | -8/Materials | Build established: Scavenger-Mutant 7339 | -8/Materials | Repaired Hrd. Light Armor Plating 7372 | -8/Materials | Repaired Arm. Wheel 7433 | -8/Materials | Build established: Mutant 7610 | -8/Materials | Repaired Rnf. Fission Core 7728 | -8/Materials | Identified exit to Garrison 7728 | -8/Materials | Entered Garrison 7858 | -8/Garrison | Triggered checkpoint 7935 | -8/Garrison | Discovered new exit (range 9) 8168 | -8/Garrison | Triggered checkpoint 8174 | -8/Garrison | Triggered checkpoint 8226 | -8/Garrison | Triggered checkpoint 8413 | -8/Garrison | Garrison Relay disabled 8534 | -8/Garrison | Discovered new exit (range 11) 9161 | -8/Garrison | Garrison Relay disabled 9254 | -8/Garrison | Rescued a captive Derelict 9255 | -8/Garrison | Rescued a captive Derelict 9277 | -8/Garrison | Discovered new exit (range 15) 9358 | -8/Garrison | Installed Relay Interface Framework 9471 | -8/Garrison | Rescued AZ-K3N 9634 | -8/Garrison | Triggered checkpoint 9736 | -8/Garrison | Triggered checkpoint 9807 | -8/Garrison | Discovered new exit (range 10) 9824 | -8/Garrison | Triggered checkpoint 9920 | -8/Garrison | Garrison Relay disabled 10175 | -8/Garrison | Found Adv. Powered Armor 10274 | -8/Garrison | Found Exp. Remote Datajack 10281 | -8/Garrison | Murdered AZ-K3N 10293 | -8/Garrison | Found Vortex Chain Reactor 10367 | -8/Garrison | Entered Materials 10367 | -8/Materials | Accompanied by 1 ally 10553 | -8/Materials | Build established: Bothacker-Mutant 10633 | -8/Materials | Unchained authorized (CL-0N3) 10966 | -8/Materials | GA-OE8(h) reconstituted as H-88 Terminator 10978 | -8/Materials | H-88 Terminator reconstituted as CL-0N3 11164 | -8/Materials | R-06 Scavenger reconstituted as Martyr 11171 | -8/Materials | Martyr reconstituted as CL-0N3 11235 | -8/Materials | Destroyed CL-0N3 11239 | -8/Materials | Extracted schematics, analyses from CL-0N3's data core 11243 | -8/Materials | Found Prototype Processor 11244 | -8/Materials | Identified Zeronet Interface 11514 | -8/Materials | Garrison activated, responded to threat 11567 | -8/Materials | First assault squad dispatched 11580 | -8/Materials | Identified exit to Garrison 11641 | -8/Materials | Discovered new exit (range 14) 11654 | -8/Materials | Garrison activated, responded to threat 13016 | -8/Materials | Entered Garrison 13150 | -8/Garrison | Triggered checkpoint 13172 | -8/Garrison | Garrison Relay disabled 13322 | -8/Garrison | Triggered checkpoint 13331 | -8/Garrison | Triggered checkpoint 13540 | -8/Garrison | Discovered new exit (range 14) 13852 | -8/Garrison | Garrison Relay disabled 14048 | -8/Garrison | Triggered checkpoint 14112 | -8/Garrison | Expanded RIF knowledge: Signal Jamming 14129 | -8/Garrison | Discovered new exit (range 8) 14336 | -8/Garrison | Triggered checkpoint 14430 | -8/Garrison | Triggered checkpoint 14484 | -8/Garrison | Garrison Relay disabled 14580 | -8/Garrison | Rescued a captive Derelict 14584 | -8/Garrison | Rescued a captive Derelict 14667 | -8/Garrison | Discovered new exit (range 13) 14680 | -8/Garrison | Triggered checkpoint 14687 | -8/Garrison | Discovered new exit (range 12) 14755 | -8/Garrison | Entered Materials 14755 | -8/Materials | Accompanied by 2 allies 15555 | -8/Materials | First assault squad dispatched 15625 | -8/Materials | Core integrity fell below 50% 15658 | -8/Materials | Destroyed 7 combat bots 15760 | -8/Materials | Identified exit to Garrison 15827 | -8/Materials | Entered Garrison 15827 | -8/Garrison | Accompanied by 1 ally 16189 | -8/Garrison | Triggered checkpoint 16219 | -8/Garrison | Garrison Relay disabled 16222 | -8/Garrison | Build established: Scavenger-Mutant 16365 | -8/Garrison | P-60 Hacker assimilated allied *Johny 16539 | -8/Garrison | Build established: Bothacker-Mutant 16571 | -8/Garrison | Triggered checkpoint 16705 | -8/Garrison | Discovered new exit (range 11) 16987 | -8/Garrison | Build established: Scavenger-Mutant 17161 | -8/Garrison | Triggered checkpoint 17188 | -8/Garrison | Garrison Relay disabled 17292 | -8/Garrison | Expanded RIF knowledge: Command Fork 17331 | -8/Garrison | Build established: Bothacker-Mutant 17339 | -8/Garrison | Discovered new exit (range 10) 17362 | -8/Garrison | Entered Factory 17362 | -7/Factory | Accompanied by 3 allies 17362 | -7/Factory | Evolved 2 slots: Power x1, Utility x1 17481 | -7/Factory | Garrison activated, responded to threat 17560 | -7/Factory | Identified exit to Garrison 17569 | -7/Factory | Entered Garrison 17569 | -7/Garrison | Accompanied by 2 allies 17751 | -7/Garrison | Destroyed 8 combat bots 17759 | -7/Garrison | Lost 5 parts (1p1n1u2w) 17777 | -7/Garrison | Triggered checkpoint 17820 | -7/Garrison | Lost 3 parts (3n) 17985 | -7/Garrison | Triggered checkpoint 18047 | -7/Garrison | Garrison Relay disabled 18325 | -7/Garrison | Build established: Scavenger-Mutant 18407 | -7/Garrison | Triggered checkpoint 18700 | -7/Garrison | Discovered new exit (range 10) 18765 | -7/Garrison | Triggered checkpoint 18801 | -7/Garrison | Expanded RIF knowledge: Structural Interface 18907 | -7/Garrison | Garrison Relay disabled 18955 | -7/Garrison | Build established: Bothacker-Mutant 19231 | -7/Garrison | Entered Factory 19231 | -7/Factory | Accompanied by 2 allies 19631 | -7/Factory | First assault squad dispatched 19661 | -7/Factory | Fabricated P-80 Master (x2) 19800 | -7/Factory | Fabricated P-80 Master? 19942 | -7/Factory | Fabricated P-80 Master? 20081 | -7/Factory | Lost 3 allies 20379 | -7/Factory | Discovered new exit (range 7) 20731 | -7/Factory | Discovered new exit (range 14) 20770 | -7/Factory | Identified exit to Garrison 20854 | -7/Factory | Identified exit to Storage 20854 | -7/Factory | Identified exit to Lower Caves 20864 | -7/Factory | Lost 4 allies 21093 | -7/Factory | Discovered new exit (range 11) 21123 | -7/Factory | Entered Storage 21123 | -7/Storage | Accompanied by 1 ally 21144 | -7/Storage | Watched by a mysterious "MATRIX" hacker. 21212 | -7/Storage | Repaired Adv. Powered Armor? 21352 | -7/Storage | Repaired Mni. Grenade Launcher 21410 | -7/Storage | Assisted by bots powering up and referring to "LRC-V3" 21624 | -7/Storage | Used back door to open Recycling access 21624 | -7/Storage | Discovered new exit (range 5) 21653 | -7/Storage | Entered Recycling 21653 | -7/Recycling | Accompanied by 11 allies 21724 | -7/Recycling | Build established: Commander-Mutant 22474 | -7/Recycling | Discovered new exit (range 5) 22661 | -7/Recycling | Lost 3 allies 22809 | -7/Recycling | Learned Factory emergency access door positions 22863 | -7/Recycling | Learned location of 2 exits from Upper Caves 22868 | -7/Recycling | Scanned before Scraplab entrance 22899 | -7/Recycling | Entered Scraplab 22907 | -7/Recycling | Learned Extension terminal intel 22916 | -7/Recycling | Discovered new exit (range 3) 22917 | -7/Recycling | Build established: Bothacker-Mutant 22966 | -7/Recycling | Learned location of 1 exit from Proximity Caves 22981 | -7/Recycling | Learned 2 Lower Caves zone layouts 22984 | -7/Recycling | Learned location of Proximity Caves (-6) 22996 | -7/Recycling | Learned Factory trap positions 23048 | -7/Recycling | Learned location of 1 exit from Lower Caves 23056 | -7/Recycling | Entered Scraptown 23056 | -7/Scraptown | Accompanied by 7 allies 23279 | -7/Scraptown | Visited TADAMA 23305 | -7/Scraptown | Visited Bundlers 23561 | -7/Scraptown | Received an X-ray algorithm 23723 | -7/Scraptown | Visited Shadow of the Wyrm 23735 | -7/Scraptown | Visited Spacefarers 23778 | -7/Scraptown | Visited Awakened 23797 | -7/Scraptown | Visited IN-MT5's Study 23828 | -7/Scraptown | Visited SPCMW 23851 | -7/Scraptown | Turned away by UFD registrar 24012 | -7/Scraptown | Discovered new exit (range 13) 24181 | -7/Scraptown | DAS Turret deployed 24826 | -7/Scraptown | Build established: Commander-Mutant 25172 | -7/Scraptown | Attacked by Scraptown defenders 25261 | -7/Scraptown | Lost 3 allies 25277 | -7/Scraptown | Entered Factory 25277 | -5/Factory | Accompanied by 1 ally 25277 | -5/Factory | Evolved 4 slots: Propulsion x2, Utility x2 25278 | -5/Factory | Loaded intel: 87 trap records 25327 | -5/Factory | Identified exit to Upper Caves 25363 | -5/Factory | Tech Extrapolator generated special schematic: Deep Structural Scanner 25583 | -5/Factory | Discovered new exit (range 15) 25651 | -5/Factory | Build established: Hacker-Mutant 25897 | -5/Factory | Fabricated IN-MT5's Pitchfork "Insurrection" (x1) 25950 | -5/Factory | Fabricated P-80 Master? 26001 | -5/Factory | Tech Extrapolator generated special schematic: Machine Rigger 26095 | -5/Factory | P-70 Sage assimilated allied Sentinel 6a 26151 | -5/Factory | Cargo convoy interrupted 26277 | -5/Factory | Fabricated Gravmag Array? 26317 | -5/Factory | Fabricated Adv. Powered Armor? 26343 | -5/Factory | Fabricated Deep Structural Scanner? 26344 | -5/Factory | Reprogrammed and armed K-01 Serf 26401 | -5/Factory | Reprogrammed and armed K-01 Serf 26406 | -5/Factory | Reprogrammed and armed K-01 Serf 26406 | -5/Factory | Reprogrammed and armed K-01 Serf 26499 | -5/Factory | Lost 3 allies 26501 | -5/Factory | Build established: Scavenger-Mutant 26518 | -5/Factory | Reprogrammed and armed K-01 Serf 26658 | -5/Factory | Manually triggered Chute Trap 26658 | -5/Factory | Sucked down chute 26658 | -5/Factory | Entered Waste 26658 | -5/Waste | The area was eerily silent 26683 | -5/Waste | Found Prototype Device 26683 | -5/Waste | Identified Adv. Kinecellerator 26705 | -5/Waste | Found Prototype Device 26705 | -5/Waste | Identified Exp. Thermal Defense Suite 26756 | -5/Waste | Discovered new exit (range 13) 26771 | -5/Waste | Identified exit to Factory 26771 | -5/Waste | Entered Factory 26849 | -5/Factory | Identified exit to DSF 26936 | -5/Factory | Reprogrammed and armed K-01 Serf 26941 | -5/Factory | Reprogrammed and armed K-01 Serf 26955 | -5/Factory | Reprogrammed and armed K-01 Serf 26958 | -5/Factory | Reprogrammed and armed K-01 Serf 26969 | -5/Factory | Reprogrammed and armed K-01 Serf 26971 | -5/Factory | Discovered exit to Upper Caves (range 16) 26975 | -5/Factory | Reprogrammed and armed K-01 Serf 27018 | -5/Factory | Identified exit to DSF 27027 | -5/Factory | Reprogrammed and armed K-01 Serf 27028 | -5/Factory | Entered DSF 27028 | -5/DSF | Accompanied by 6 allies 27030 | -5/DSF | Tech Extrapolator generated special schematic: Energy Deflector 27053 | -5/DSF | Additional patrols routed to DSF 27089 | -5/DSF | Lost 4 parts (2p2u) 27118 | -5/DSF | Found Prototype Hackware 27118 | -5/DSF | Identified Exp. System Shield 27121 | -5/DSF | Found Exp. System Shield 27222 | -5/DSF | Discovered new exit (range 15) 27277 | -5/DSF | Sterilization system engaged 27297 | -5/DSF | Ambient heat levels rising (+10) 27312 | -5/DSF | Ambient heat levels rising (+10) 27327 | -5/DSF | Ambient heat levels rising (+10) 27334 | -5/DSF | Identified exit to Factory 27337 | -5/DSF | Entered Factory 27337 | -4/Factory | Accompanied by 3 allies 27337 | -4/Factory | Evolved 2 slots: Utility x2 27358 | -4/Factory | Build established: Mutant 27469 | -4/Factory | Reprogrammed and armed K-01 Serf 27484 | -4/Factory | Fabricated Vortex Chain Reactor? 27588 | -4/Factory | Fabricated IN-MT5's Pitchfork "Insurrection"? 27694 | -4/Factory | Fabricated Adv. Powered Armor? 27812 | -4/Factory | P-70 Sage assimilated allied K-01 Serf 27817 | -4/Factory | Fabricated IN-MT5's Pitchfork "Insurrection"? 27819 | -4/Factory | Reprogrammed and armed K-01 Serf 27820 | -4/Factory | P-70 Sage assimilated allied K-01 Serf 27830 | -4/Factory | Reprogrammed and armed K-01 Serf 27888 | -4/Factory | Reprogrammed and armed K-01 Serf 27890 | -4/Factory | Reprogrammed and armed K-01 Serf 27955 | -4/Factory | Fabricated P-80 Master? 28053 | -4/Factory | Fabricated IN-MT5's Pitchfork "Insurrection"? 28054 | -4/Factory | Reprogrammed and armed K-01 Serf 28186 | -4/Factory | P-70 Sage assimilated allied K-01 Serf 28193 | -4/Factory | Reprogrammed and armed K-01 Serf 28239 | -4/Factory | Reprogrammed and armed K-01 Serf 28400 | -4/Factory | Reprogrammed and armed K-01 Serf 28402 | -4/Factory | Reprogrammed and armed K-01 Serf 28451 | -4/Factory | Master 7b assimilated hostile W-44 Eye 28467 | -4/Factory | Cargo convoy interrupted 28497 | -4/Factory | Found Prototype Device 28497 | -4/Factory | Identified Exp. Weapon Cycler 28529 | -4/Factory | Reprogrammed and armed K-01 Serf 28533 | -4/Factory | Spotted B-86 Titan 28543 | -4/Factory | Allies destroyed B-86 Titan 28636 | -4/Factory | Reprogrammed and armed K-01 Serf 28638 | -4/Factory | Reprogrammed and armed K-01 Serf 28639 | -4/Factory | Reprogrammed and armed K-01 Serf 28640 | -4/Factory | Reprogrammed and armed K-01 Serf 28641 | -4/Factory | Lost 9 allies 28715 | -4/Factory | Lost 3 allies 28726 | -4/Factory | Repaired Broken Cmb. Linear Gravjet? 28775 | -4/Factory | Reprogrammed and armed K-01 Serf 28799 | -4/Factory | Reprogrammed and armed K-01 Serf 28963 | -4/Factory | Targeted by mysterious "MATRIX" hacker. 29014 | -4/Factory | Build established: Hacker-Mutant 29164 | -4/Factory | Reprogrammed and armed K-01 Serf 29255 | -4/Factory | Identified exit to Garrison 29292 | -4/Factory | Reprogrammed and armed K-01 Serf 29348 | -4/Factory | Fabricated Cld. Linear Gravjet? 29354 | -4/Factory | P-70 Sage assimilated allied K-01 Serf 29357 | -4/Factory | Garrison activated, responded to threat 29363 | -4/Factory | Reprogrammed and armed K-01 Serf 29410 | -4/Factory | Manually triggered Chute Trap 29410 | -4/Factory | Sucked down chute 29410 | -4/Factory | Entered Waste 29416 | -4/Waste | Spotted C-40 Crusher 29417 | -4/Waste | Spotted C-40 Crusher 29418 | -4/Waste | Spotted C-40 Crusher 29419 | -4/Waste | Spotted C-40 Crusher 29420 | -4/Waste | 1 allies followed down the chute 29420 | -4/Waste | Discovered new exit (range 16) 29422 | -4/Waste | Identified exit to Factory 29423 | -4/Waste | Entered Factory 29428 | -4/Factory | Identified exit to DSF 29435 | -4/Factory | Reprogrammed and armed K-01 Serf 29771 | -4/Factory | Build established: Bothacker-Mutant 29776 | -4/Factory | Reprogrammed and armed K-01 Serf 29963 | -4/Factory | Discovered new exit (range 23) 30156 | -4/Factory | Reprogrammed and armed K-01 Serf 30159 | -4/Factory | Reprogrammed and armed K-01 Serf 30161 | -4/Factory | Reprogrammed and armed K-01 Serf 30162 | -4/Factory | Identified exit to Garrison 30168 | -4/Factory | Reprogrammed and armed K-01 Serf 30233 | -4/Factory | Lost 3 allies 30326 | -4/Factory | Reprogrammed and armed K-01 Serf 30354 | -4/Factory | Reprogrammed and armed K-01 Serf 30355 | -4/Factory | Reprogrammed and armed K-01 Serf 30421 | -4/Factory | Build established: Hacker-Mutant 30484 | -4/Factory | Reprogrammed and armed K-01 Serf 30507 | -4/Factory | Reprogrammed and armed K-01 Serf 30510 | -4/Factory | Reprogrammed and armed K-01 Serf 30512 | -4/Factory | Reprogrammed and armed K-01 Serf 30513 | -4/Factory | Reprogrammed and armed K-01 Serf 30516 | -4/Factory | Entered Garrison 30516 | -4/Garrison | Accompanied by 8 allies 30520 | -4/Garrison | Expanded RIF knowledge: Zone Cloak 30578 | -4/Garrison | Triggered checkpoint 30628 | -4/Garrison | Garrison Relay disabled 30696 | -4/Garrison | Garrison Relay disabled 30758 | -4/Garrison | Triggered checkpoint 30764 | -4/Garrison | Imp. System Shield fried by hacking feedback 30788 | -4/Garrison | Garrison Relay disabled 30868 | -4/Garrison | Discovered new exit (range 10) 30878 | -4/Garrison | Identified exit to Research 31026 | -4/Garrison | Triggered checkpoint 31042 | -4/Garrison | Triggered checkpoint 31078 | -4/Garrison | Spotted B-86 Titan 31089 | -4/Garrison | Allies destroyed B-86 Titan 31127 | -4/Garrison | Build established: Commander-Mutant 31135 | -4/Garrison | Discovered exit to Research (range 15) 31154 | -4/Garrison | Triggered checkpoint 31189 | -4/Garrison | Garrison Relay disabled 31297 | -4/Garrison | Spotted B-86 Titan 31315 | -4/Garrison | Allies destroyed B-86 Titan 31327 | -4/Garrison | Found Relay Coupler [Proto] 31330 | -4/Garrison | Found Relay Coupler [Proto] 31377 | -4/Garrison | Garrison Relay disabled 31412 | -4/Garrison | Triggered checkpoint 31462 | -4/Garrison | Discovered exit to Research (range 13) 31531 | -4/Garrison | Entered Research 31531 | -3/Research | Accompanied by 21 allies 31531 | -3/Research | Evolved 2 slots: Utility x2 31575 | -3/Research | Reprogrammed and armed K-01 Serf 31755 | -3/Research | Lost 9 allies 31818 | -3/Research | Reprogrammed and armed K-01 Serf 31872 | -3/Research | Spotted B-86 Titan 31892 | -3/Research | Allies destroyed B-86 Titan 31947 | -3/Research | Lost 9 allies 31952 | -3/Research | Spotted B-86 Titan 31963 | -3/Research | Destroyed B-86 Titan 32006 | -3/Research | Build established: Bothacker-Mutant 32031 | -3/Research | First assault squad dispatched 32042 | -3/Research | Reprogrammed and armed K-01 Serf 32097 | -3/Research | Reprogrammed and armed K-01 Serf 32154 | -3/Research | Discovered new exit (range 4) 32164 | -3/Research | Identified exit to Research 32179 | -3/Research | P-80 Master assimilated allied K-01 Serf 32194 | -3/Research | Reprogrammed and armed K-01 Serf 32224 | -3/Research | Lost 5 allies 32340 | -3/Research | Reprogrammed and armed K-01 Serf 32418 | -3/Research | Reprogrammed and armed K-01 Serf 32440 | -3/Research | Reprogrammed and armed K-01 Serf 32481 | -3/Research | Reprogrammed and armed K-01 Serf 32508 | -3/Research | Reprogrammed and armed K-01 Serf 32548 | -3/Research | Reprogrammed and armed K-01 Serf 32548 | -3/Research | Reprogrammed and armed K-01 Serf 32555 | -3/Research | Reprogrammed and armed K-01 Serf 32559 | -3/Research | Reprogrammed and armed K-01 Serf 32583 | -3/Research | Reprogrammed and armed K-01 Serf 32641 | -3/Research | Allied Derelicts emerged from ambush trap array 32756 | -3/Research | Reprogrammed and armed K-01 Serf 32924 | -3/Research | Identified exit to Quarantine 32936 | -3/Research | P-80 Master assimilated allied K-01 Serf 32943 | -3/Research | Discovered exit to Research (range 22) 32943 | -3/Research | P-80 Master assimilated allied K-01 Serf 32950 | -3/Research | Reprogrammed and armed K-01 Serf 32950 | -3/Research | Reprogrammed and armed K-01 Serf 32952 | -3/Research | Reprogrammed and armed K-01 Serf 32983 | -3/Research | Lost 3 allies 33010 | -3/Research | Found Prototype Protection 33010 | -3/Research | Identified Centrium Heavy Armor Plating 33050 | -3/Research | Reprogrammed and armed K-01 Serf 33154 | -3/Research | Build established: Mutant 33164 | -3/Research | Reprogrammed and armed K-01 Serf 33180 | -3/Research | Reprogrammed and armed K-01 Serf 33218 | -3/Research | Reprogrammed and armed K-01 Serf 33330 | -3/Research | Reprogrammed and armed K-01 Serf 33348 | -3/Research | Found Adv. Powered Armor 33393 | -3/Research | Reprogrammed and armed K-01 Serf 33400 | -3/Research | Reprogrammed and armed K-01 Serf 33426 | -3/Research | Fabricated IN-MT5's Pitchfork "Insurrection"? 33439 | -3/Research | P-80 Master assimilated allied K-01 Serf 33442 | -3/Research | P-80 Master assimilated allied K-01 Serf 33447 | -3/Research | Reprogrammed and armed K-01 Serf 33450 | -3/Research | Reprogrammed and armed K-01 Serf 33542 | -3/Research | Lost 6 allies 33616 | -3/Research | Reprogrammed and armed K-01 Serf 33638 | -3/Research | Reprogrammed and armed K-01 Serf 33673 | -3/Research | Attached CPS modules to CY-PHR. 33683 | -3/Research | Destroyed CY-PHR 33704 | -3/Research | Found Prototype Device 33704 | -3/Research | Identified Exp. Cloaking Device 33716 | -3/Research | Lost 3 parts (2u1w) 33716 | -3/Research | Crushed by falling debris 33717 | -3/Research | System corruption reached 10% 33747 | -3/Research | Lost 4 parts (1p1n2u) 33797 | -3/Research | Reprogrammed and armed K-01 Serf 33811 | -3/Research | Entered Quarantine 33834 | -3/Quarantine | Lost 6 parts (1p1n4u) 33931 | -3/Quarantine | Found Alien Artifact 34123 | -3/Quarantine | Reprogrammed and armed K-01 Serf 34166 | -3/Quarantine | P-80 Master assimilated allied K-01 Serf 34213 | -3/Quarantine | Lost 3 parts (1p1u1w) 34308 | -3/Quarantine | Core integrity fell below 50% 34311 | -3/Quarantine | System corruption reached 30% 34341 | -3/Quarantine | Lost 7 parts (1p4n1u1w) 34375 | -3/Quarantine | Found Alien Slashing Weapon 34375 | -3/Quarantine | Identified Sigix Broadsword 34488 | -3/Quarantine | Discovered exit to Research (range 5) 34561 | -3/Quarantine | First assault squad dispatched 34642 | -3/Quarantine | Identified Terrabomb 34778 | -3/Quarantine | Found Alien Artifact 34792 | -3/Quarantine | Spotted Alpha 7 34831 | -3/Quarantine | Spotted Fortress 34855 | -3/Quarantine | Assimilated Fortress with formatsys_high 34858 | -3/Quarantine | Attached CPS modules to Fortress. 34958 | -3/Quarantine | Discovered new exit (range 6) 34958 | -3/Quarantine | Discovered new exit (range 6) 34961 | -3/Quarantine | Build established: Scavenger-Gladiator 34972 | -3/Quarantine | Identified exit to Protoforge 34973 | -3/Quarantine | Identified exit to Section 7 34979 | -3/Quarantine | Entered Protoforge 34979 | -3/Protoforge | Accompanied by 1 ally 35000 | -3/Protoforge | Spotted B-86 Titan 35057 | -3/Protoforge | Superfortress began startup sequence 35219 | -3/Protoforge | Spotted Overlord 35231 | -3/Protoforge | Attached CPS modules to Overlord. 35295 | -3/Protoforge | Allies destroyed Overlord 35303 | -3/Protoforge | Found Prototype Device 35305 | -3/Protoforge | Found Exp. EM Shield 35307 | -3/Protoforge | Found Prototype Device 35312 | -3/Protoforge | Found Exp. Weapon Cycler 35316 | -3/Protoforge | Found Centrium Heavy Armor Plating 35320 | -3/Protoforge | Identified Exp. Remote Shield 35322 | -3/Protoforge | Found Prototype Device 35323 | -3/Protoforge | Identified Exp. Transmission Jammer 35335 | -3/Protoforge | Found Exp. Targeting Computer 35384 | -3/Protoforge | P-80 Master assimilated allied Fortress 35385 | -3/Protoforge | Destroyed Fortress 35408 | -3/Protoforge | Found Vortex Chain Reactor 35410 | -3/Protoforge | Found Exp. Force Field 35423 | -3/Protoforge | Discovered exit to Research (range 20) 35438 | -3/Protoforge | Spotted Hotshot 35438 | -3/Protoforge | Spotted Hotshot 35438 | -3/Protoforge | Spotted Hotshot 35438 | -3/Protoforge | Spotted Hotshot 35447 | -3/Protoforge | Used Terrabomb 35447 | -3/Protoforge | Additional patrols dispatched to research labs 35454 | -3/Protoforge | Spotted Immortal 35479 | -3/Protoforge | First assault squad dispatched 35483 | -3/Protoforge | Destroyed Immortal 35516 | -3/Protoforge | Spotted Decapitator 35516 | -3/Protoforge | Spotted Decapitator 35516 | -3/Protoforge | Spotted Decapitator 35516 | -3/Protoforge | Spotted Decapitator 35519 | -3/Protoforge | Destroyed Decapitator 35554 | -3/Protoforge | Destroyed Decapitator 35560 | -3/Protoforge | Destroyed Decapitator 35612 | -3/Protoforge | Destroyed Decapitator 35624 | -3/Protoforge | Found Prototype Slashing Weapon 35624 | -3/Protoforge | Identified Exp. Terror Saw 35742 | -3/Protoforge | Identified Exp. Active Sensor Suite 35745 | -3/Protoforge | Found Prototype Device 35774 | -3/Protoforge | Found Cep. Core Shell 35777 | -3/Protoforge | Found Cep. Projectile Intercept Suite 35803 | -3/Protoforge | Found Cep. Zero-point Core 35805 | -3/Protoforge | Found Cep. Zero-point Core 35835 | -3/Protoforge | Found Cep. Zero-point Core 35962 | -3/Protoforge | Spotted Hotshot 35964 | -3/Protoforge | Spotted Hotshot 35969 | -3/Protoforge | Spotted Hotshot 35985 | -3/Protoforge | Spotted Hotshot 36012 | -3/Protoforge | Spotted V393-g 36027 | -3/Protoforge | Core integrity fell below 20% 36043 | -3/Protoforge | Destroyed by Y-72 Warden with Railgun Last Messages --------------- 36022_ Penetrated by Slug. 36026_ C-55 Analyst destroyed. 36029_ Penetrated by Slug. 36031_ Cmb. Linear Gravjet destroyed. 36031_ Slug penetrates Reinforced Barrier. 36035_ Imp. Antigrav System+ destroyed. 36036_ Dropped Hyb. Graviton Reactor. 36037_ /DF LTJ1VRNGB/6XN:N1DB%E 36037_ Dropped Hcp. Storage Unit. 36037_ Dropped Exp. Cooling System. 36037_ Slug penetrates Hotshot. 36038_ Adv. Weight Redist. System destroyed. 36038_ Centrium Heavy Armor Plating destroyed. 36038_ Cep. Core Shell destroyed. 36039_ Cep. Projectile Intercept Suite destroyed. 36041_ Penetrated by Slug. 36042_ Hotshot activates shielding mode. 36042_ Penetrated by Slug. 36042_ Cep. Zero-point Core destroyed. 36043_ Penetrated by Slug. Map ----- +----------------------------------------------------+ | #????????????? ????????????????????? | | ##???????????? ????????????????????? | | "#????????"""? ????????????????????? | | "" "#????????"""? ????????????????????? | | "" "#????????? ? ?????????????????????? | | %! """" "#????????? ?????????????????????? | | [! #"""""""#????????? ?????????????????????? | | #= #########????????##""" #?????????????????????? | | # #????????????????#" " #?????????????????????? | | # #????????????????#" " #?????????????????????? | | # #????????????????#" !" #?????????????????????? | | # #????????????????#" " #?????????????????????? | | #!=#????????????????#" " #?????????????????????? | | #==###??????????????#" " #?????????????????????? | | #%!!"#??????????????#" " #?????????????????????? | | # = #??????????????#" " #?????????????????????? | | # ] #??????????????#" #?????????????????????? | | # #??????????????#"""# #?????????????????????? | | # ###??????????????##### #?????????????????????? | | # #????????????????????# #?????????????????????? | | # #????????????????????# #?????????????????????? | | # #????????????????????# #?????????????????????? | | # =#????????????????????# #?????????????????????? | | # #????????????????????#! #?????????????????????? | | #% ###################### ^##################### | | @!!*!!! ! Y | | !!!!! g=% Y | | % % !!!!* g ! V | | ############++###################;/g######## ### | | ????????# " "#???????????# #???????#?? | | ????????# ["#???????????# #?????????? | | ????????# ["#???????????# " " #?????????? | | ????????#" ! ["#???????????# " " #?????????? | | ????????#" T" ##???????????# " G"" #?????????? | | ????????#" "" "#???????????# ! #?????????? | | ????????#" """" "#???????????###########?????????? | | ????????#""""""""#???????????????????????????????? | | ????????##########???????????????????????????????? | | ?????????????????????????????????????????????????? | | ?????????????????????????????????????????????????? | | ?????????????????????????????????????????????????? | | ?????????????????????????????????????????????????? | | #????????????????????????????????????????????????? | | #????????????????????????????????????????????????? | | ?????????????????????????????????????????????????? | | ?????????????????????????????????????????????????? | | ?????????????????????????????????????????????????? | | ?????????????????????????????????????????????????? | | ?????????????????????????????????????????????????? | | ?????????????????????????????????????????????????? | +----------------------------------------------------+ Best States ------------- Heat Dissipation 84 Coolant Potential 120 Energy Generation 55 Energy Capacity 1650 Matter Stores 300 Matter Capacity 300 Sight Range 23 Robot Scan Range 20 Terrain Scan Range 16 Terrain Scan Density 10 Jamming Range 22 Cloak Strength 4 Additional Mass Support 16 Corruption Containment 8 Armor Coverage 1100 Resistance: EM 75 Core Shielding 90 Propulsion Shielding 90 Weapon Shielding 66 Point Defense Rating 240 Weapon Cycling 30 Evasion (%) 70 Targeting Accuracy 20 Melee Accuracy 16 Target Analysis 8 Recoil Reduction 4 Offensive Hacking 22 Defensive Hacking 16 Relay Coupler Types 6 Relay Coupler Value 77 Authchip Count 10 Item Schematics ----------------- Huge Storage Unit | -10/Materials | Hacked Bore Cannon | -9/Materials | Scanalyzed Exp. Sensor Array | -9/Materials | Scanalyzed Gravmag Array | -8/Materials | Scanalyzed Enh. Armored Heavy Treads | -8/Materials | Scanalyzed Vortex Chain Reactor | -8/Materials | Scanalyzed Prc. Phase Gun | -8/Materials | Scanalyzed Adv. Powered Armor | -8/Materials | Scanalyzed Imp. Weapon Shielding | -7/Recycling | Hacked IN-MT5's Pitchfork "Insurrection" | -7/Scraptown | Archive Deep Structural Scanner | -5/Factory | Extrapolated Mak. Terrain Scan Processor | -5/Factory | Extrapolated 0b10 Decoder Chip [Skirmisher] | -5/Factory | Extrapolated Mak. Kinetic Plating | -5/Factory | Extrapolated Mak. Transmission Jammer | -5/Factory | Extrapolated Machine Rigger | -5/Factory | Extrapolated Mak. Core Shielding | -5/Factory | Extrapolated Mak. Light Armor Plating | -5/Factory | Extrapolated Mak. Coolant Network | -5/Factory | Extrapolated Multireflex Exoskeleton | -5/Waste | Extrapolated Mak. Medium Armor Plating | -5/Factory | Extrapolated Tactical Coordination Suite | -5/Factory | Extrapolated Mak. Ablative Armor | -5/Factory | Extrapolated Energy Deflector | -5/DSF | Extrapolated Cld. Linear Gravjet | -4/Factory | Scanalyzed CPS Tube | -3/Quarantine | Scanalyzed Cmb. Linear Gravjet | -3/Quarantine | Scanalyzed Quantum Shading Machine | -3/Protoforge | Archive Hvy. Wave Gun | -3/Protoforge | Archive Robot Schematics ------------------ M-13 Machinist | -10/Materials | Hacked K-01 Serf | -8/Materials | Archive T-07 Excavator | -8/Materials | Archive A-02 Transporter | -8/Materials | Archive A-15 Conveyor | -8/Materials | Archive R-06 Scavenger | -8/Materials | Archive R-10 Processor | -8/Materials | Archive M-14 Sweeper | -8/Materials | Archive M-22 Extractor | -8/Materials | Archive M-30 Cleanser | -8/Materials | Archive M-28 Smith | -8/Materials | Archive M-36 Artificer | -8/Materials | Archive O-16 Technician | -8/Materials | Archive O-24 Administrator | -8/Materials | Archive O-32 Director | -8/Materials | Archive W-16 Scout | -8/Materials | Archive W-25 Informer | -8/Materials | Archive W-44 Eye | -8/Materials | Archive S-10 Pest | -8/Materials | Archive S-27 Virus | -8/Materials | Archive S-43 Plague | -8/Materials | Archive G-34 Mercenary | -8/Materials | Archive G-47 Trooper | -8/Materials | Archive G-50 Soldier | -8/Materials | Archive G-67 Veteran | -8/Materials | Archive G-73 Enforcer | -8/Materials | Archive B-36 Bruiser | -8/Materials | Archive B-48 Gladiator | -8/Materials | Archive B-60 Warrior | -8/Materials | Archive B-74 Champion | -8/Materials | Archive L-31 Rogue | -8/Materials | Archive L-41 Fighter | -8/Materials | Archive L-61 Swordsman | -8/Materials | Archive Y-45 Defender | -8/Materials | Archive Y-54 Guardian | -8/Materials | Archive Y-64 Sentinel | -8/Materials | Archive Y-72 Warden | -8/Materials | Archive D-53 Grenadier | -8/Materials | Archive D-63 Destroyer | -8/Materials | Archive D-83 Annihilator | -8/Materials | Archive X-57 Shotgunner | -8/Materials | Archive X-62 Marksman | -8/Materials | Archive X-67 Chaingunner | -8/Materials | Archive X-72 Disruptor | -8/Materials | Archive X-77 Beamer | -8/Materials | Archive X-82 Rainmaker | -8/Materials | Archive X-87 Electro | -8/Materials | Archive H-55 Commando | -8/Materials | Archive H-66 Slayer | -8/Materials | Archive H-77 Assassin | -8/Materials | Archive H-88 Terminator | -8/Materials | Archive P-60 Hacker | -8/Materials | Archive P-70 Sage | -8/Materials | Archive P-80 Master | -8/Materials | Archive Fabricated ------------ P-80 Master | x2 | -7/Factory | Authchip P-80 Master | x2 | -7/Factory | Authchip P-80 Master | x2 | -7/Factory | Authchip IN-MT5's Pitchfork "Insurrection" | x1 | -5/Factory | Authchip P-80 Master | x2 | -5/Factory | Authchip Gravmag Array | x1 | -5/Factory | Authchip Adv. Powered Armor | x1 | -5/Factory | Authchip Deep Structural Scanner | x1 | -5/Factory | Authchip Vortex Chain Reactor | x1 | -4/Factory | Authchip IN-MT5's Pitchfork "Insurrection" | x1 | -4/Factory | Authchip Adv. Powered Armor | x1 | -4/Factory | Authchip IN-MT5's Pitchfork "Insurrection" | x1 | -4/Factory | Authchip P-80 Master | x2 | -4/Factory | Authchip IN-MT5's Pitchfork "Insurrection" | x1 | -4/Factory | Authchip Cld. Linear Gravjet | x1 | -4/Factory | Authchip IN-MT5's Pitchfork "Insurrection" | x1 | -3/Research | Authchip Repaired ---------- Hrd. Light Armor Plating | 16% | -8/Materials Arm. Wheel | 2% | -8/Materials Rnf. Fission Core | 24% | -8/Materials Adv. Powered Armor | 8% | -7/Storage Mni. Grenade Launcher | 14% | -7/Storage Cmb. Linear Gravjet | 6% | -4/Factory | Broken Studied --------- Katana | -8/Materials | Hacked Remote Datajack | -7/Factory | Hacked Linear Gravjet | -5/Factory | Hacked Imp. Antigrav System | -3/Quarantine | Hacked Alien Tech Used ----------------- Sigix Broadsword Terrabomb Achievements -------------- None Challenges ------------ None Game ------ Seed SuperchargedAuthchipFlakker Manual? 0 Play Time 08:56:53 Cumulative 1409.0 hours Start 2026.03.24 @ 19:50:37 End 2026.03.26 @ 13:09:13 Sessions 15 Manual Loads 0 Difficulty Rogue Special Mode None Game No. 465 Rogue 458 Adventurer 4 Explorer 3 Win Type - Total 40 Types 19/5/2/2/1/2/4/1/2/2 Lore% 97 Gallery% 94 Achievement% 87 Wizard Run 0 Options --------- Layout 0 ASCII 0 Keyboard 0 Movement Numpad Keybinds 0 Fullscreen 2 Font 18/Terminus Map View 76x50 Zoom Use 0% Tactical HUD 1 Map Filters NONE Filters NONE Steam 1 RUN: 247148b5-3dee-4ccb-9298-f2825bbb76e8